Workbook

Sheet DECOMPTE 1
E2: FRANCHISE | F2: =DONNEES!D10 -> 300 | G2: TOTALISER XX | H2: Assura Basis - VOCAT Georges - 962 018 - 20.11.1939 | J2: Décompte du : | N2: =TODAY() -> 2023-12-03 | O2: AIDE COLONNE O | P2: CALCUL DU POURCENT | T2: AIDE COLONNE S
B3: Date de la consultation Prestation(s) | C3: Date de la Facture | D3: DATE D'ENVOI A L'ASSURANCE | E3: TYPES DE SOINS | F3: TYPE(S) DE PRESTATION(S) OU REMEDE(S) | G3: No Décompte | H3: DESCRIPTION(S) FOURNISSEURS | I3: Montant Facture(s) | J3: Mes Avances | K3: Calcule du 10 % | L3: Montant Remboursé Moins le 10 % | M3: Date du Remboursement ou NON remboursement | N3: SITUATION A CE JOUR | O3: Montants après DEDUCTIONS OU NON REMBOURSE OU FRANCHISE EN NEGATIF | P3: Pourcentage de Participation 10 % | Q3: Solde à payé par l'Assureur | R3: CODES FACTURES AUTO | S3: Numéro du Décompte Assura | T3: Montants Réellement payé par l'Assurance | U3: Montant des Factures Regroupées | V3: Différence entre mes avances et leurs remboursement | W3: Addition des montants pour Franchise & non payment Divers | X3: Commentaires a reprendrent dans la colonne D qui s'affiche avec le petit triangle | Y3: Total des montants reconnu par l'assurance | AA3: DATE DE MON PAYEMENT DES FACTURES OU DATE DE L'ECRITURE | AB3: 0.1
I4: =I59 -> 0 | J4: =J59 -> 0 | K4: =K59 -> 0 | L4: =SUM(L5:L58) -> 0 | O4: =O63 -> 0 | P4: =P59 -> 0 | Q4: =Q59 -> 0 | T4: =T59 -> 421.55 | U4: =U59 -> 0 | V4: =V59 -> 0 | W4: =(W59) -> 0 | Y4: =Y59 -> 0
R5: =G5 -> 0 | V5: =P5 -> 0 | W5: =IF(O5<0,O5,"") ->  | X5: REGLEMENT DIRECT
R6: 0 | V6: 0 | X6: DECOMPTE POUR FRANCHISE | Y6: =ABS(O6) -> 0 | Z6: =R6 -> 0 | AA6: =M6 -> 00:00:00 | AB6: =P6 -> 0
R7: 0 | V7: 0 | X7: EN ATTENTE DE LA PARTICIPATION | Y7: 0 | Z7: 0 | AA7: 00:00:00 | AB7: 0
R8: 0 | V8: 0 | X8: EN ATTENTE DE REGLEMENT | Y8: 0 | Z8: 0 | AA8: 00:00:00 | AB8: 0
R9: 0 | V9: 0 | X9: ERREUR | Y9: 0 | Z9: 0 | AA9: 00:00:00 | AB9: 0
R10: 0 | V10: 0 | X10: FACTURE PAYEE DIRECTEMENT PAR L'ASSURANCE | Y10: 0 | Z10: 0 | AA10: 00:00:00 | AB10: 0
R11: 0 | V11: 0 | X11: MA PARTICIPATION 10 % SUR AVANCE DE L'ASSURANCE | Y11: 0 | Z11: 0 | AA11: 00:00:00 | AB11: 0
R12: 0 | V12: =P12 -> 0 | X12: PRELEVEMENT ET/OU REMBOURSEMENT FRANCHISE | Y12: 0 | Z12: 0 | AA12: 00:00:00 | AB12: 0
R13: =G13 -> 0 | V13: 0 | X13: REMBOURSE SOUS DEDUCTION DU 10 % | Y13: 0 | Z13: 0 | AA13: 00:00:00 | AB13: 0
R14: 0 | S14: 2231678607 | T14: 19.1 | V14: 0 | X14: REMBOURSEMENT DE L'ASSUREUR POUR TOP PAYE | Y14: 0 | Z14: 0 | AA14: 00:00:00 | AB14: 0
R15: 0 | S15: 2232525578 | T15: 6.95 | V15: =P15 -> 0 | X15: REMBOURSEMENT SANS PARTICIPATION | Y15: 0 | Z15: 0 | AA15: 00:00:00 | AB15: 0
R16: 0 | S16: 2232865934 | T16: 129.25 | V16: 0 | X16: REMBOUSEMENT PARTIEL | Y16: 0 | Z16: 0 | AA16: 00:00:00 | AB16: 0
R17: 0 | S17: 2232100125 | T17: 104.15 | V17: 0 | X17: SOLDE DE LA FACTURE APRES DEDUCTION FRANCHISE | Y17: 0 | Z17: 0 | AA17: 00:00:00 | AB17: 0
R18: 0 | S18: 2236607454 | T18: 0 | V18: 0 | X18: SOLDE DE LA FACTURE APRES DEDUCTION FRANCHISE - 10% | Y18: 0 | Z18: 0 | AA18: 00:00:00 | AB18: 0
R19: 0 | S19: 2236124045 | T19: 13.95 | V19: 0 | X19: NON REMBOURSE PAR L'ASSURANCE | Y19: 0 | Z19: 0 | AA19: 00:00:00 | AB19: 0
R20: 0 | S20: 2236124045 | T20: 31.3 | V20: 0 | X20: OPTIONS CONDITIONNELLES | Y20: 0 | Z20: 0 | AA20: 00:00:00 | AB20: 0
R21: 0 | S21: 2236124045 | T21: 5.3 | V21: =P21 -> 0 | X21: VOIR SUSPENDS | Y21: 0 | Z21: 0 | AA21: 00:00:00 | AB21: 0
R22: 0 | S22: 22336493772 | T22: 111.55 | V22: 0 | X22: FACTURE PAYEE DIRECTEMENT PAR L'ASSURANCE | Y22: 0 | Z22: 0 | AA22: 00:00:00 | AB22: 0
R23: 0 | V23: 0 | Y23: 0 | Z23: 0 | AA23: 00:00:00 | AB23: 0
K24: =I24*10% -> 0 | L24: =I24-K24 -> 0 | P24: =IF(O24>0,O24*DONNEES!$D$13,IF(O24>=DONNEES!D29,AB75,"")) -> 0 | Q24: =IF(P24<>"",O24-P24,"") -> 0 | R24: 0 | V24: 0 | Y24: 0 | Z24: 0 | AA24: 00:00:00 | AB24: 0
K25: 0 | L25: 0 | P25: =IF(O25>0,O25*DONNEES!$D$13,IF(O25>=DONNEES!D30,AB76,"")) -> 0 | Q25: 0 | R25: 0 | V25: =P25 -> 0 | Y25: 0 | Z25: 0 | AA25: 00:00:00 | AB25: 0
K26: 0 | L26: 0 | P26: =IF(O26>0,O26*DONNEES!$D$13,IF(O26>=DONNEES!D31,AB77,"")) -> 0 | Q26: 0 | R26: 0 | V26: 0 | Y26: 0 | Z26: 0 | AB26: 0
K27: 0 | L27: 0 | P27: =IF(O27>0,O27*DONNEES!$D$13,IF(O27>=DONNEES!D32,AB78,"")) -> 0 | Q27: 0 | R27: 0 | V27: =P27 -> 0 | Y27: 0 | Z27: 0 | AB27: 0
K28: =I28*10% -> 0 | L28: 0 | P28: =IF(O28>0,O28*DONNEES!$D$13,IF(O28>=DONNEES!D33,AB79,"")) -> 0 | Q28: 0 | R28: 0 | V28: 0 | Y28: 0 | Z28: 0 | AB28: 0
K29: 0 | L29: =I29-K29 -> 0 | P29: =IF(O29>0,O29*DONNEES!$D$13,IF(O29>=DONNEES!D34,AB80,"")) -> 0 | Q29: 0 | R29: 0 | V29: 0 | Y29: 0 | Z29: 0 | AB29: 0
K30: 0 | L30: 0 | P30: =IF(O30>0,O30*DONNEES!$D$13,IF(O30>=DONNEES!D35,AB81,"")) -> 0 | Q30: 0 | R30: 0 | V30: 0 | Y30: 0 | Z30: 0 | AB30: 0
K31: 0 | L31: 0 | P31: =IF(O31>0,O31*DONNEES!$D$13,IF(O31>=DONNEES!D36,AB82,"")) -> 0 | Q31: 0 | R31: 0 | V31: 0 | Y31: 0 | Z31: 0 | AB31: 0
K32: 0 | L32: 0 | P32: =IF(O32>0,O32*DONNEES!$D$13,IF(O32>=DONNEES!D37,AB83,"")) -> 0 | Q32: 0 | R32: 0 | V32: 0 | Y32: 0 | Z32: 0 | AB32: 0
K33: 0 | L33: 0 | P33: =IF(O33>0,O33*DONNEES!$D$13,IF(O33>=DONNEES!D38,AB84,"")) -> 0 | Q33: =IF(P33<>"",O33-P33,"") -> 0 | R33: 0 | V33: =P33 -> 0 | W33: =IF(O33<0,O33,"") ->  | Y33: =ABS(O33) -> 0 | Z33: 0 | AB33: =P33 -> 0
K34: 0 | L34: 0 | P34: =IF(O34>0,O34*DONNEES!$D$13,IF(O34>=DONNEES!D39,AB85,"")) -> 0 | Q34: 0 | R34: 0 | V34: 0 | W34: =IF(O34<0,O34,"") ->  | Y34: =ABS(O34) -> 0 | Z34: 0 | AB34: 0
K35: 0 | L35: 0 | P35: =IF(O35>0,O35*DONNEES!$D$13,IF(O35>=DONNEES!D40,AB86,"")) -> 0 | Q35: 0 | R35: 0 | V35: 0 | Y35: =ABS(O35) -> 0 | Z35: 0 | AB35: 0
K36: 0 | L36: 0 | P36: =IF(O36>0,O36*DONNEES!$D$13,IF(O36>=DONNEES!D41,AB87,"")) -> 0 | Q36: 0 | R36: 0 | V36: 0 | Y36: 0 | Z36: 0 | AB36: 0
K37: 0 | L37: 0 | P37: =IF(O37>0,O37*DONNEES!$D$13,IF(O37>=DONNEES!D42,AB88,"")) -> 0 | Q37: 0 | R37: 0 | V37: 0 | Y37: 0 | Z37: 0 | AB37: 0
K38: 0 | L38: 0 | P38: =IF(O38>0,O38*DONNEES!$D$13,IF(O38>=DONNEES!D43,AB89,"")) -> 0 | Q38: 0 | R38: =G38 -> 0 | V38: =P38 -> 0 | Y38: 0 | Z38: 0 | AB38: 0
K39: 0 | L39: 0 | P39: =IF(O39>0,O39*DONNEES!$D$13,IF(O39>=DONNEES!D44,AB90,"")) -> 0 | Q39: 0 | R39: 0 | V39: 0 | Y39: 0 | Z39: 0 | AB39: =P39 -> 0
K40: =I40*10% -> 0 | L40: 0 | P40: =IF(O40>0,O40*DONNEES!$D$13,IF(O40>=DONNEES!D45,AB91,"")) -> 0 | Q40: 0 | R40: 0 | V40: 0 | Y40: 0 | Z40: 0 | AB40: 0
K41: 0 | L41: =I41-K41 -> 0 | P41: =IF(O41>0,O41*DONNEES!$D$13,IF(O41>=DONNEES!D46,AB92,"")) -> 0 | Q41: 0 | R41: 0 | V41: 0 | Y41: 0 | Z41: 0 | AB41: 0
K42: 0 | L42: 0 | P42: =IF(O42>0,O42*DONNEES!$D$13,IF(O42>=DONNEES!D47,AB93,"")) -> 0 | Q42: 0 | R42: 0 | V42: 0 | Y42: 0 | Z42: 0 | AB42: 0
K43: 0 | L43: 0 | P43: =IF(O43>0,O43*DONNEES!$D$13,IF(O43>=DONNEES!D48,AB94,"")) -> 0 | Q43: 0 | R43: 0 | V43: 0 | Y43: 0 | Z43: 0 | AB43: 0
K44: 0 | L44: 0 | P44: =IF(O44>0,O44*DONNEES!$D$13,IF(O44>=DONNEES!D49,AB95,"")) -> 0 | Q44: 0 | R44: 0 | V44: 0 | Y44: 0 | Z44: 0 | AB44: 0
K45: 0 | L45: 0 | P45: =IF(O45>0,O45*DONNEES!$D$13,IF(O45>=DONNEES!D50,AB96,"")) -> 0 | Q45: 0 | R45: 0 | V45: =P45 -> 0 | Y45: 0 | Z45: 0 | AB45: 0
K46: 0 | L46: 0 | P46: =IF(O46>0,O46*DONNEES!$D$13,IF(O46>=DONNEES!D51,AB97,"")) -> 0 | Q46: 0 | R46: 0 | V46: 0 | Y46: 0 | Z46: 0 | AB46: 0
K47: 0 | L47: 0 | P47: =IF(O47>0,O47*DONNEES!$D$13,IF(O47>=DONNEES!D52,AB98,"")) -> 0 | Q47: 0 | R47: 0 | V47: 0 | Y47: 0 | Z47: 0 | AB47: 0
K48: 0 | L48: 0 | P48: =IF(O48>0,O48*DONNEES!$D$13,IF(O48>=DONNEES!D53,AB99,"")) -> 0 | Q48: 0 | R48: 0 | V48: 0 | Y48: 0 | Z48: 0 | AB48: =P48 -> 0
K49: =I49*10% -> 0 | L49: 0 | P49: =IF(O49>0,O49*DONNEES!$D$13,IF(O49>=DONNEES!D54,AB100,"")) -> 0 | Q49: 0 | R49: 0 | V49: 0 | Y49: 0 | Z49: 0 | AB49: 0
K50: 0 | L50: 0 | P50: =IF(O50>0,O50*DONNEES!$D$13,IF(O50>=DONNEES!D55,AB101,"")) -> 0 | Q50: 0 | R50: 0 | V50: 0 | Y50: 0 | Z50: 0 | AB50: 0
K51: 0 | L51: 0 | P51: =IF(O51>0,O51*DONNEES!$D$13,IF(O51>=DONNEES!D56,AB102,"")) -> 0 | Q51: 0 | R51: 0 | V51: =P51 -> 0 | Y51: 0 | Z51: 0 | AB51: 0
K52: 0 | L52: 0 | P52: =IF(O52>0,O52*DONNEES!$D$13,IF(O52>=DONNEES!D57,AB103,"")) -> 0 | Q52: 0 | R52: 0 | V52: 0 | Y52: 0 | Z52: 0 | AB52: 0
K53: 0 | L53: =I53-K53 -> 0 | P53: =IF(O53>0,O53*DONNEES!$D$13,IF(O53>=DONNEES!D58,AB104,"")) -> 0 | Q53: 0 | R53: 0 | V53: 0 | Y53: 0 | Z53: 0 | AB53: 0
K54: 0 | L54: 0 | P54: =IF(O54>0,O54*DONNEES!$D$13,IF(O54>=DONNEES!D59,AB105,"")) -> 0 | Q54: 0 | R54: 0 | V54: 0 | Y54: 0 | Z54: 0 | AB54: 0
K55: 0 | L55: 0 | P55: =IF(O55>0,O55*DONNEES!$D$13,IF(O55>=DONNEES!D60,AB106,"")) -> 0 | Q55: 0 | R55: 0 | V55: 0 | Z55: 0 | AB55: 0
K56: 0 | L56: 0 | P56: =IF(O56>0,O56*DONNEES!$D$13,IF(O56>=DONNEES!D61,AB107,"")) -> 0 | Q56: 0 | R56: 0 | V56: =P56 -> 0 | Z56: 0 | AB56: 0
K57: 0 | L57: 0 | P57: =IF(O57>0,O57*DONNEES!$D$13,IF(O57>=DONNEES!D62,AB108,"")) -> 0 | Q57: 0 | R57: 0 | V57: 0 | Z57: 0 | AB57: 0
K58: 0 | L58: 0
H59: SOUS TOTAUX | I59: =SUM(I5:I58) -> 0 | J59: =SUM(J5:J58) -> 0 | K59: =SUM(K5:K58) -> 0 | L59: =SUM(L5:L58) -> 0 | O59: =SUM(O5:O58) -> 0 | P59: =MIN(DONNEES!D12,SUM(P5:P33)) -> 0 | Q59: =SUMIF(Q5:Q58,">0",Q5:Q58) -> 0 | T59: =SUM(T5:T33) -> 421.55 | U59: =SUM(U5:U33) -> 0 | V59: =SUM(V5:V33) -> 0 | W59: =SUM(W5:W33) -> 0 | Y59: =SUM(Y5:Y33) -> 0
B60: =DONNEES!D10 -> 300 | H60: ="SOLDE (APRES) DEDUCTION DE LA FRANCHISE "&B60 -> SOLDE (APRES) DEDUCTION DE LA FRANCHISE 300 | I60: =ABS(J59-F2) -> 300 | J60: FRAI ANNEXES A MA CHARGE | N60: =IF(O60<0,"TROP PERCU POUR LA FRANCHISE",IF(O60>0,"MONTANT A PERCEVOIR POUR LA FRANCHISE OU FRAIS ANNEXES","")) -> MONTANT A PERCEVOIR POUR LA FRANCHISE OU FRAIS ANNEXES | O60: =SUM(B60-N64) -> 300 | P60: PARTIEL OU REFUS | Q60: =V59 -> 0
B61: =P59 -> 0 | H61: SOUS DEDUCTION DES PARTICIPATIONS | I61: =B61 -> 0
B62: =Q60 -> 0 | H62: MONTANTS NON PRIS EN CHARGE | I62: =Q60 -> 0
H63: SOLDE INTEMEDIAIRE | I63: =I60-I61-I62 -> 300 | N63: Solde calculé - Solde payé | O63: =O59 -> 0 | P63: - | Q63: =T59 -> 421.55
H64: =IF(I64>0,"SOLDE A MA CHARGE",IF(I64<0,"SOLDE EN MA FAVEUR OU DEFAVEUR")) -> SOLDE EN MA FAVEUR OU DEFAVEUR | I64: =J59-B60-B61-B62 -> -300 | M64: MONTANTS RETENUS POUR LA FRANCHISE | N64: =ABS(W59) -> 0 | O64: Mes avances sous déduction du montant réellement payé par l'assureur. | Q64: =J59-Q59 -> 0
H65: Total des montants reconnu par l'assurance | I65: =Q64 -> 0
H66: Moins franchise | I66: =B60 -> 300
H67: Moins participation | I67: =B61 -> 0
H68: Montant à rembourser | I68: =I65-I66-I67 -> -300
H69: - Remboursement de l'assurance | I69: =Q63 -> 421.55
H70: Solde actuel | I70: =I68-I69 -> -721.55

Sheet DECOMPTE 2
B1: MODE D''EMPLOI | J1: MODE REMBOURSE NON REMBOURSE | N1: DSK | O1: TOTAL CHARGES | P1: REMBOUSEMENT REFUSEE | Q1: =DONNEES!B18 -> 2024 | T1: RECAPITULATION
E2: FRANCHISE | F2: 300 | H2: Assura Basis - VOCAT Georges - 962 018 - 20.11.1939 | K2: Décompte du : | N2: =TODAY() -> 2023-12-03 | O2: ZONE DE CALCULS | P2: AIDE COLONNE O | Q2: CALCUL DU POURCENT | U2: AIDE COLONNE S
B3: Date de la consultation ou Prestation(s) | C3: Date de la Facture | D3: DATE D'ENVOI A L'ASSURANCE | E3: TYPES DE SOINS | F3: TYPE(S) DE PRESTATION(S) OU MEDICAMENT(S) | G3: No Facture | H3: DESCRIPTION(S) FOURNISSEURS PRESCRIPTEURS | I3: TAPER QQC SI REMBOURSE SI NON RIEN | J3: Montant Facture(s) | K3: Mes Avances | L3: Calcule du 10 % | M3: Montant Remboursé Moins le 10 % | N3: Date du Remboursement ou DU NON remboursement | O3: SITUATION A CE JOUR | P3: Montants à ma charge OU NON REMBOURSE | Q3: Pourcentage de Participation 10 % | R3: Solde à payé par l'Assureur | S3: CODES FACTURES | T3: Numéro du Décompte Assura | U3: Montants Réellement payé par l'Assurance | V3: Montant des Factures Regroupées | W3: Différence entre mes avances et leurs remboursement | X3: Addition des montants négatifs retenus pour Franchise | Y3: Commentaires a reprendrent dans la colonne D qui s'affiche avec le petit triangle | Z3: Total des montants reconnu par l'assurance | AB3: DATE DE MON PAYEMENT DES FACTURES OU DATE DE L'ECRITURE | AC3: 0.1
G4: REPORT TOTAUX DECOMPTE 1 | O4: << 1 >> | Q4: ='DECOMPTE 1'!P4 -> 0 | R4: ='DECOMPTE 1'!Q4 -> 0 | U4: ='DECOMPTE 1'!T4 -> 421.55 | W4: ='DECOMPTE 1'!V4 -> 0
G5: REPORT TOTAUX DECOMPTE 2 | J5: =J61 -> 0 | K5: =K61 -> 0 | M5: =SUM(M7:M60) -> 0 | O5: << 2 >> | P5: =P61 -> 0 | Q5: =Q61 -> 0 | R5: =R61 -> 0 | U5: =U61 -> 0 | V5: =V61 -> 0 | W5: =W61 -> 0 | X5: =X61 -> 0 | Z5: =Z61 -> 0
G6: TOTAL DE 2 | J6: =J4+J5 -> 0 | K6: =K4+K5 -> 0 | L6: =L4+L5 -> 0 | M6: 0 | N6: 0 | O6: << 1 + 2 >> | Q6: =Q4+Q5 -> 0 | R6: =R4+R5 -> 0 | S6: =S4+S5 -> 0 | T6: =T4+T5 -> 0 | U6: =U4+U5 -> 421.55 | W6: =SUM(W4:W5) -> 0
Y7: Colonne1
Y8: DECOMPTE POUR FRANCHISE | Z8: =ABS(P8) -> 0 | AA8: =S8 -> 0 | AC8: =Q8 -> 0
Y9: EN ATTENTE DE LA PARTICIPATION | Z9: 0 | AA9: 0 | AC9: 0
Y10: EN ATTENTE DE REGLEMENT | Z10: 0 | AA10: 0 | AC10: 0
Y11: ERREUR | Z11: 0 | AA11: 0 | AC11: 0
Y12: FACTURE PAYEE DIRECTEMENT PAR L'ASSURANCE | Z12: 0 | AA12: 0 | AC12: 0
Y13: MA PARTICIPATION 10 % SUR AVANCE DE L'ASSURANCE | Z13: 0 | AA13: 0 | AC13: 0
Z14: 0 | AA14: 0
Y15: REMBOURSE SOUS DEDUCTION DU 10 % | Z15: 0 | AA15: 0 | AC15: 0
Y16: REMBOURSEMENT DE L'ASSUREUR POUR TOP PAYE | Z16: 0 | AA16: 0 | AC16: 0
Y17: REMBOURSEMENT SANS PARTICIPATION | Z17: 0 | AA17: 0 | AC17: 0
S18: =G18 -> 0 | W18: =IF(P18>0,K18-U18,"") ->  | X18: =IF(P18<0,P18,"") ->  | Y18: REMBOUSEMENT PARTIEL | Z18: 0 | AA18: 0 | AC18: 0
S19: 0 | Y19: SOLDE DE LA FACTURE APRES DEDUCTION FRANCHISE | Z19: 0 | AA19: 0 | AC19: 0
S20: 0 | Y20: SOLDE DE LA FACTURE APRES DEDUCTION FRANCHISE - 10% | Z20: 0 | AA20: 0 | AC20: 0
S21: 0 | Y21: NON REMBOURSE | Z21: 0 | AA21: 0 | AC21: 0
S22: 0 | Y22: OPTIONS CONDITIONNELLES | Z22: 0 | AA22: 0 | AC22: 0
S23: 0 | Y23: VOIR SUSPENDS | Z23: 0 | AA23: 0 | AC23: 0
S24: 0 | Y24: FACTURE PAYEE DIRECTEMENT PAR L'ASSURANCE AVEC SOLDE DE PARTICIPATION | Z24: 0 | AA24: 0 | AC24: 0
S25: 0 | Y25: REMBOURSEMENT NON PRIS EN CHARGE PAR L'ASSURANCE | Z25: 0 | AA25: 0 | AC25: 0
S26: 0 | Z26: 0 | AA26: 0 | AC26: 0
S27: 0 | Z27: 0 | AA27: 0 | AC27: 0
S28: 0 | Z28: 0 | AA28: 0 | AC28: 0
S29: 0 | Z29: 0 | AA29: 0 | AC29: 0
S30: 0 | Z30: 0 | AA30: 0 | AC30: 0
S31: 0 | Z31: 0 | AA31: 0 | AC31: 0
S32: 0 | Z32: 0 | AA32: 0 | AC32: 0
S33: 0 | Z33: 0 | AA33: 0 | AC33: 0
S34: 0 | Z34: 0 | AA34: 0 | AC34: 0
S35: 0 | X35: =IF(P35<0,P35,"") ->  | Z35: =ABS(P35) -> 0 | AA35: 0 | AC35: 0
S36: 0 | X36: =IF(P36<0,P36,"") ->  | Z36: =ABS(P36) -> 0 | AA36: 0 | AC36: 0
S37: 0 | Z37: =ABS(P37) -> 0 | AA37: 0 | AC37: 0
S38: 0 | Z38: 0 | AA38: 0 | AC38: 0
S39: 0 | Z39: 0 | AA39: 0 | AC39: 0
S40: 0 | Z40: 0 | AA40: 0 | AC40: 0
S41: 0 | Z41: 0 | AA41: 0 | AC41: =Q41 -> 0
S42: 0 | Z42: 0 | AA42: 0 | AC42: 0
S43: 0 | Z43: 0 | AA43: 0 | AC43: 0
S44: 0 | Z44: 0 | AA44: 0 | AC44: 0
S45: 0 | Z45: 0 | AA45: 0 | AC45: 0
S46: 0 | Z46: 0 | AA46: 0 | AC46: 0
S47: 0 | Z47: 0 | AA47: 0 | AC47: 0
S48: 0 | Z48: 0 | AA48: 0 | AC48: 0
S49: 0 | Z49: 0 | AA49: 0 | AC49: 0
S50: 0 | Z50: 0 | AA50: 0 | AC50: =Q50 -> 0
S51: 0 | Z51: 0 | AA51: 0 | AC51: 0
S52: 0 | Z52: 0 | AA52: 0 | AC52: 0
S53: 0 | Z53: 0 | AA53: 0 | AC53: 0
S54: 0 | Z54: 0 | AA54: 0 | AC54: 0
S55: 0 | Z55: 0 | AA55: 0 | AC55: 0
S56: 0 | Z56: 0 | AA56: 0 | AC56: 0
S57: 0 | AA57: 0
S58: 0 | AA58: 0
S59: 0 | AA59: 0
V60: =IF(#REF!>0,K60-T60,"") ->  | Z60: 0 | AB60: =O60 -> 00:00:00 | AC60: 0
H61: SOUS TOTAUX | J61: =SUM(J7:J60) -> 0 | K61: =SUM(K7:K60) -> 0 | P61: =SUMIF(P7:P59,">0",P7:P59) -> 0 | R61: =SUMIF(R7:R60,">0",R7:R60) -> 0 | U61: =SUM(U7:U35) -> 0 | V61: =SUM(V7:V35) -> 0 | W61: =SUM(W7:W35) -> 0 | X61: =SUM(X7:X35) -> 0 | Z61: =SUM(Z7:Z35) -> 0
B62: =DONNEES!D10 -> 300 | H62: ="SOUS (APRES) DEDUCTION DE LA FRANCHISE "&B62 -> SOUS (APRES) DEDUCTION DE LA FRANCHISE 300 | J62: =ABS(K61-F2) -> 300 | K62: =K61+K4 -> 0 | N62: TOTAL PAGE UNE & DEUX | O62: =IF(P62<0,"TROP PERCU POUR LA FRANCHISE",IF(P62>0,"ABSORTION DE LA FRANCHISE","")) -> ABSORTION DE LA FRANCHISE | P62: =SUM(B62-O66) -> 300 | Q62: =P62*10% -> 30 | R62: =W61 -> 0
B63: =Q61 -> 0 | H63: SOUS DEDUCTION DES PARTICIPATIONS | J63: =B63 -> 0
B64: =R62 -> 0 | H64: MONTANTS NON PRIS EN CHARGE | J64: =R62 -> 0
H65: SOLDE INTEMEDIAIRE ASSURA | J65: =J62-J63-J64 -> 300 | O65: Solde calculé - Solde payé | P65: =P61 -> 0 | Q65: - | R65: =U61 -> 0
H66: =IF(J66>0,"SOLDE A MA CHARGE",IF(J66<0,"SOLDE EN MA FAVEUR")) -> SOLDE EN MA FAVEUR | J66: =K61-B62-B63-B64 -> -300 | N66: MONTANTS RETENUS POUR LA FRANCHISE | O66: ='DECOMPTE 1'!W4 -> 0 | P66: Mes avances sous déduction du montant réellement payé par l'assureur. | R66: ='RECAPITULATION (1)'!D80 -> 0
H68: Total des montants reconnu par l'assurance | J68: =Z61 -> 0
H69: Moins franchise | J69: =B62 -> 300
H71: Moins participation | J71: =B63 -> 0
H72: Montant à rembourser | J72: =J68-J69-J71 -> -300
H74: - Remboursement de l'assurance | J74: =R65 -> 0
H75: Solde actuel | J75: =J72-J74 -> -300
T76: aucun
T77: pas de décompte

Sheet RESUME (hidden)
B1: RESUME DES DIVERS CALCULS
B3: MONTANT RECCONU PAR L'ASSURANCE | E3: ='DECOMPTE 1'!Y59 -> 0 | F3: MONTANT TOTAL DES FACTURES | I3: ='DECOMPTE 1'!I59 -> 0
B5: SOUS DEDUCTION DE LA FRANCHISE | E5: =ABS('DECOMPTE 1'!W59) -> 0 | F5: SOLDE DES FACTURES ENCORE A REMBOURSER | I5: ='DECOMPTE 1'!J59 -> 0
B6: SOUS TOTAL FRANCHISE DEDUITE | E6: =E3-E5 -> 0
F7: MONTANT DES FACTURES REMBOURSEES | I7: ='DECOMPTE 1'!T59 -> 421.55
B8: SOUS DEDUCTION DU POUCENTAGE DE PARTICIPATION | E8: ='DECOMPTE 1'!P59 -> 0
B9: MONTANT A REGLER PAR L'ASSURANCE | E9: =E6-E8 -> 0 | F9: SOLDE FACTURE EN SUSPEND : SANS DEDUCTION DU 10 % | I9: =I3-I7 -> -421.55
F10: CECI EST UNE ESTIMATION PONCTUELLE A CE JOUR
B11: PART REMBOURSEE PAR L'ASSURANCE | E11: ='DECOMPTE 1'!I69 -> 421.55
B12: =IF(E12>0,"EXCEDENT DE L'ASSURANCE","SOLDE ACTUEL EN MA FAVEUR DES MONTANTS EN ATTENTES") -> SOLDE ACTUEL EN MA FAVEUR DES MONTANTS EN ATTENTES | E12: ='DECOMPTE 1'!I70 -> -721.55

Sheet LETTRE D'ENVOI
B3: ='DECOMPTE 1'!H2 -> Assura Basis - VOCAT Georges - 962 018 - 20.11.1939
B6: =IF(B3=DONNEES!F3,DONNEES!D18,IF(B3=DONNEES!F4,DONNEES!D19)) -> Georges VOCAT | F6: Nyon le | G6: =TODAY() -> 2023-12-03
B7: =DONNEES!B10 -> Rue de la Fléchère 17
B8: =DONNEES!B11 -> CH-1260 NYON
B10: =DONNEES!B14 -> CCP - 12-56914-9 | F10: =DONNEES!D3 -> ASSURA
B11: Mail : ghv1260@outlook.com | F11: =DONNEES!D4 -> Assura-Basis SA
F12: =DONNEES!D5 -> Case Postale 4
F13: =DONNEES!D6 -> CH-1052 Le Mont-sur-Lausanne
B16: Concerne : TRAITEMENT(S) | E16: =DONNEES!B18 -> 2024
B19: G 18 PHARMACIE SUN STORE 34.80
B27: En vous remerciant de me faire parvenir votre participation.
B29: -
B35: Avec l'expression de mes salutations les meilleures.
B37: Georges Vocat

Sheet RECAPITULATION (1)
C5: ='DECOMPTE 1'!H2 -> Assura Basis - VOCAT Georges - 962 018 - 20.11.1939 | D5: Facturation totale décompte 1 | F5: ='DECOMPTE 1'!T3 -> Montants Réellement payé par l'Assurance | G5: Montant non pris en charge par l'assurance | H5: ='DECOMPTE 1'!W3 -> Addition des montants pour Franchise & non payment Divers
B6: ='DECOMPTE 1'!G5 -> 0 | C6: ='DECOMPTE 1'!H5 -> 0 | D6: ='DECOMPTE 1'!I5 -> 0 | E6: ='DECOMPTE 1'!O5 -> 0 | F6: ='DECOMPTE 1'!T5 -> 0 | G6: ='DECOMPTE 1'!V5 -> 0 | H6: ='DECOMPTE 1'!W5 -> 
B7: ='DECOMPTE 1'!G6 -> 0 | C7: ='DECOMPTE 1'!H6 -> 0 | D7: ='DECOMPTE 1'!I6 -> 0 | E7: ='DECOMPTE 1'!O6 -> 0 | F7: ='DECOMPTE 1'!T6 -> 0 | G7: ='DECOMPTE 1'!V6 -> 0 | H7: ='DECOMPTE 1'!W6 -> 
B8: ='DECOMPTE 1'!G7 -> 0 | C8: ='DECOMPTE 1'!H7 -> 0 | D8: ='DECOMPTE 1'!I7 -> 0 | E8: ='DECOMPTE 1'!O7 -> 0 | F8: ='DECOMPTE 1'!T7 -> 0 | G8: ='DECOMPTE 1'!V7 -> 0 | H8: ='DECOMPTE 1'!W7 -> 
B9: ='DECOMPTE 1'!G8 -> 0 | C9: ='DECOMPTE 1'!H8 -> 0 | D9: ='DECOMPTE 1'!I8 -> 0 | E9: ='DECOMPTE 1'!O8 -> 0 | F9: ='DECOMPTE 1'!T8 -> 0 | G9: ='DECOMPTE 1'!V8 -> 0 | H9: ='DECOMPTE 1'!W8 -> 
B10: ='DECOMPTE 1'!G9 -> 0 | C10: ='DECOMPTE 1'!H9 -> 0 | D10: ='DECOMPTE 1'!I9 -> 0 | E10: ='DECOMPTE 1'!O9 -> 0 | F10: ='DECOMPTE 1'!T9 -> 0 | G10: ='DECOMPTE 1'!V9 -> 0 | H10: ='DECOMPTE 1'!W9 -> 
B11: ='DECOMPTE 1'!G10 -> 0 | C11: ='DECOMPTE 1'!H10 -> 0 | D11: ='DECOMPTE 1'!I10 -> 0 | E11: ='DECOMPTE 1'!O10 -> 0 | F11: ='DECOMPTE 1'!T10 -> 0 | G11: ='DECOMPTE 1'!V10 -> 0 | H11: ='DECOMPTE 1'!W10 -> 
B12: ='DECOMPTE 1'!G11 -> 0 | C12: ='DECOMPTE 1'!H11 -> 0 | D12: ='DECOMPTE 1'!I11 -> 0 | E12: ='DECOMPTE 1'!O11 -> 0 | F12: ='DECOMPTE 1'!T11 -> 0 | G12: ='DECOMPTE 1'!V11 -> 0 | H12: ='DECOMPTE 1'!W11 -> 
B13: ='DECOMPTE 1'!G12 -> 0 | C13: ='DECOMPTE 1'!H12 -> 0 | D13: ='DECOMPTE 1'!I12 -> 0 | E13: ='DECOMPTE 1'!O12 -> 0 | F13: ='DECOMPTE 1'!T12 -> 0 | G13: ='DECOMPTE 1'!V12 -> 0 | H13: ='DECOMPTE 1'!W12 -> 
B14: ='DECOMPTE 1'!G13 -> 0 | C14: ='DECOMPTE 1'!H13 -> 0 | D14: ='DECOMPTE 1'!I13 -> 0 | E14: ='DECOMPTE 1'!O13 -> 0 | F14: ='DECOMPTE 1'!T13 -> 0 | G14: ='DECOMPTE 1'!V13 -> 0 | H14: ='DECOMPTE 1'!W13 -> 
B15: ='DECOMPTE 1'!G14 -> 0 | C15: ='DECOMPTE 1'!H14 -> 0 | D15: ='DECOMPTE 1'!I14 -> 0 | E15: ='DECOMPTE 1'!O14 -> 0 | F15: ='DECOMPTE 1'!T14 -> 19.1 | G15: ='DECOMPTE 1'!V14 -> 0 | H15: ='DECOMPTE 1'!W14 -> 
B16: ='DECOMPTE 1'!G15 -> 0 | C16: ='DECOMPTE 1'!H15 -> 0 | D16: ='DECOMPTE 1'!I15 -> 0 | E16: ='DECOMPTE 1'!O15 -> 0 | F16: ='DECOMPTE 1'!T15 -> 6.95 | G16: ='DECOMPTE 1'!V15 -> 0 | H16: ='DECOMPTE 1'!W15 -> 
B17: ='DECOMPTE 1'!G16 -> 0 | C17: ='DECOMPTE 1'!H16 -> 0 | D17: ='DECOMPTE 1'!I16 -> 0 | E17: ='DECOMPTE 1'!O16 -> 0 | F17: ='DECOMPTE 1'!T16 -> 129.25 | G17: ='DECOMPTE 1'!V16 -> 0 | H17: ='DECOMPTE 1'!W16 -> 
B18: ='DECOMPTE 1'!G17 -> 0 | C18: ='DECOMPTE 1'!H17 -> 0 | D18: ='DECOMPTE 1'!I17 -> 0 | E18: ='DECOMPTE 1'!O17 -> 0 | F18: ='DECOMPTE 1'!T17 -> 104.15 | G18: ='DECOMPTE 1'!V17 -> 0 | H18: ='DECOMPTE 1'!W17 -> 
B19: ='DECOMPTE 1'!G18 -> 0 | C19: ='DECOMPTE 1'!H18 -> 0 | D19: ='DECOMPTE 1'!I18 -> 0 | E19: ='DECOMPTE 1'!O18 -> 0 | F19: ='DECOMPTE 1'!T18 -> 0 | G19: ='DECOMPTE 1'!V18 -> 0 | H19: ='DECOMPTE 1'!W18 -> 
B20: ='DECOMPTE 1'!G19 -> 0 | C20: ='DECOMPTE 1'!H19 -> 0 | D20: ='DECOMPTE 1'!I19 -> 0 | E20: ='DECOMPTE 1'!O19 -> 0 | F20: ='DECOMPTE 1'!T19 -> 13.95 | G20: ='DECOMPTE 1'!V19 -> 0 | H20: ='DECOMPTE 1'!W19 -> 
B21: ='DECOMPTE 1'!G20 -> 0 | C21: ='DECOMPTE 1'!H20 -> 0 | D21: ='DECOMPTE 1'!I20 -> 0 | E21: ='DECOMPTE 1'!O20 -> 0 | F21: ='DECOMPTE 1'!T20 -> 31.3 | G21: ='DECOMPTE 1'!V20 -> 0 | H21: ='DECOMPTE 1'!W20 -> 
B22: ='DECOMPTE 1'!G21 -> 0 | C22: ='DECOMPTE 1'!H21 -> 0 | D22: ='DECOMPTE 1'!I21 -> 0 | E22: ='DECOMPTE 1'!O21 -> 0 | F22: ='DECOMPTE 1'!T21 -> 5.3 | G22: ='DECOMPTE 1'!V21 -> 0 | H22: ='DECOMPTE 1'!W21 -> 
B23: ='DECOMPTE 1'!G22 -> 0 | C23: ='DECOMPTE 1'!H22 -> 0 | D23: ='DECOMPTE 1'!I22 -> 0 | E23: ='DECOMPTE 1'!O22 -> 0 | F23: ='DECOMPTE 1'!T22 -> 111.55 | G23: ='DECOMPTE 1'!V22 -> 0 | H23: ='DECOMPTE 1'!W22 -> 
B24: ='DECOMPTE 1'!G23 -> 0 | C24: ='DECOMPTE 1'!H23 -> 0 | D24: ='DECOMPTE 1'!I23 -> 0 | E24: ='DECOMPTE 1'!O23 -> 0 | F24: ='DECOMPTE 1'!T23 -> 0 | G24: ='DECOMPTE 1'!V23 -> 0 | H24: ='DECOMPTE 1'!W23 -> 
B25: ='DECOMPTE 1'!G24 -> 0 | C25: ='DECOMPTE 1'!H24 -> 0 | D25: ='DECOMPTE 1'!I24 -> 0 | E25: ='DECOMPTE 1'!O24 -> 0 | F25: ='DECOMPTE 1'!T24 -> 0 | G25: ='DECOMPTE 1'!V24 -> 0 | H25: ='DECOMPTE 1'!W24 -> 
B26: ='DECOMPTE 1'!G25 -> 0 | C26: ='DECOMPTE 1'!H25 -> 0 | D26: ='DECOMPTE 1'!I25 -> 0 | E26: ='DECOMPTE 1'!O25 -> 0 | F26: ='DECOMPTE 1'!T25 -> 0 | G26: ='DECOMPTE 1'!V25 -> 0 | H26: ='DECOMPTE 1'!W25 -> 
B27: ='DECOMPTE 1'!G26 -> 0 | C27: ='DECOMPTE 1'!H26 -> 0 | D27: ='DECOMPTE 1'!I26 -> 0 | E27: ='DECOMPTE 1'!O26 -> 0 | F27: ='DECOMPTE 1'!T26 -> 0 | G27: ='DECOMPTE 1'!V26 -> 0 | H27: ='DECOMPTE 1'!W26 -> 
B28: ='DECOMPTE 1'!G27 -> 0 | C28: ='DECOMPTE 1'!H27 -> 0 | D28: ='DECOMPTE 1'!I27 -> 0 | E28: ='DECOMPTE 1'!O27 -> 0 | F28: ='DECOMPTE 1'!T27 -> 0 | G28: ='DECOMPTE 1'!V27 -> 0 | H28: ='DECOMPTE 1'!W27 -> 
B29: ='DECOMPTE 1'!G28 -> 0 | C29: ='DECOMPTE 1'!H28 -> 0 | D29: ='DECOMPTE 1'!I28 -> 0 | E29: ='DECOMPTE 1'!O28 -> 0 | F29: ='DECOMPTE 1'!T28 -> 0 | G29: ='DECOMPTE 1'!V28 -> 0 | H29: ='DECOMPTE 1'!W28 -> 0
B30: ='DECOMPTE 1'!G29 -> 0 | C30: ='DECOMPTE 1'!H29 -> 0 | D30: ='DECOMPTE 1'!I29 -> 0 | E30: ='DECOMPTE 1'!O29 -> 0 | F30: ='DECOMPTE 1'!T29 -> 0 | G30: ='DECOMPTE 1'!V29 -> 0 | H30: ='DECOMPTE 1'!W29 -> 0
B31: ='DECOMPTE 1'!G30 -> 0 | C31: ='DECOMPTE 1'!H30 -> 0 | D31: ='DECOMPTE 1'!I30 -> 0 | E31: ='DECOMPTE 1'!O30 -> 0 | F31: ='DECOMPTE 1'!T30 -> 0 | G31: ='DECOMPTE 1'!V30 -> 0 | H31: ='DECOMPTE 1'!W30 -> 0
B32: ='DECOMPTE 1'!G31 -> 0 | C32: ='DECOMPTE 1'!H31 -> 0 | D32: ='DECOMPTE 1'!I31 -> 0 | E32: ='DECOMPTE 1'!O31 -> 0 | F32: ='DECOMPTE 1'!T31 -> 0 | G32: ='DECOMPTE 1'!V31 -> 0 | H32: ='DECOMPTE 1'!W31 -> 0
B33: ='DECOMPTE 1'!G32 -> 0 | C33: ='DECOMPTE 1'!H32 -> 0 | D33: ='DECOMPTE 1'!I32 -> 0 | E33: ='DECOMPTE 1'!O32 -> 0 | F33: ='DECOMPTE 1'!T32 -> 0 | G33: ='DECOMPTE 1'!V32 -> 0 | H33: ='DECOMPTE 1'!W32 -> 0
B34: ='DECOMPTE 1'!G33 -> 0 | C34: ='DECOMPTE 1'!H33 -> 0 | D34: ='DECOMPTE 1'!I33 -> 0 | E34: ='DECOMPTE 1'!O33 -> 0 | F34: ='DECOMPTE 1'!T33 -> 0 | G34: ='DECOMPTE 1'!V33 -> 0 | H34: ='DECOMPTE 1'!W33 -> 
B35: ='DECOMPTE 1'!G34 -> 0 | C35: ='DECOMPTE 1'!H34 -> 0 | D35: ='DECOMPTE 1'!I34 -> 0 | E35: ='DECOMPTE 1'!O34 -> 0 | F35: ='DECOMPTE 1'!T34 -> 0 | G35: ='DECOMPTE 1'!V34 -> 0 | H35: ='DECOMPTE 1'!W34 -> 
B36: ='DECOMPTE 1'!G35 -> 0 | C36: ='DECOMPTE 1'!H35 -> 0 | D36: ='DECOMPTE 1'!I35 -> 0 | E36: ='DECOMPTE 1'!O35 -> 0 | F36: ='DECOMPTE 1'!T35 -> 0 | G36: ='DECOMPTE 1'!V35 -> 0 | H36: ='DECOMPTE 1'!W35 -> 
B37: ='DECOMPTE 1'!G36 -> 0 | C37: ='DECOMPTE 1'!H36 -> 0 | D37: ='DECOMPTE 1'!I36 -> 0 | E37: ='DECOMPTE 1'!O36 -> 0 | F37: ='DECOMPTE 1'!T36 -> 0 | G37: ='DECOMPTE 1'!V36 -> 0 | H37: ='DECOMPTE 1'!W36 -> 
B38: ='DECOMPTE 1'!G37 -> 0 | C38: ='DECOMPTE 1'!H37 -> 0 | D38: ='DECOMPTE 1'!I37 -> 0 | E38: ='DECOMPTE 1'!O37 -> 0 | F38: ='DECOMPTE 1'!T37 -> 0 | G38: ='DECOMPTE 1'!V37 -> 0 | H38: ='DECOMPTE 1'!W37 -> 
B39: ='DECOMPTE 1'!G38 -> 0 | C39: ='DECOMPTE 1'!H38 -> 0 | D39: ='DECOMPTE 1'!I38 -> 0 | E39: ='DECOMPTE 1'!O38 -> 0 | F39: ='DECOMPTE 1'!T38 -> 0 | G39: ='DECOMPTE 1'!V38 -> 0 | H39: ='DECOMPTE 1'!W38 -> 
B40: ='DECOMPTE 1'!G39 -> 0 | C40: ='DECOMPTE 1'!H39 -> 0 | D40: ='DECOMPTE 1'!I39 -> 0 | E40: ='DECOMPTE 1'!O39 -> 0 | F40: ='DECOMPTE 1'!T39 -> 0 | G40: ='DECOMPTE 1'!V39 -> 0 | H40: ='DECOMPTE 1'!W39 -> 
B41: ='DECOMPTE 1'!G40 -> 0 | C41: ='DECOMPTE 1'!H40 -> 0 | D41: ='DECOMPTE 1'!I40 -> 0 | E41: ='DECOMPTE 1'!O40 -> 0 | F41: ='DECOMPTE 1'!T40 -> 0 | G41: ='DECOMPTE 1'!V40 -> 0 | H41: ='DECOMPTE 1'!W40 -> 
B42: ='DECOMPTE 1'!G41 -> 0 | C42: ='DECOMPTE 1'!H41 -> 0 | D42: ='DECOMPTE 1'!I41 -> 0 | E42: ='DECOMPTE 1'!O41 -> 0 | F42: ='DECOMPTE 1'!T41 -> 0 | G42: ='DECOMPTE 1'!V41 -> 0 | H42: ='DECOMPTE 1'!W41 -> 
B43: ='DECOMPTE 1'!G42 -> 0 | C43: ='DECOMPTE 1'!H42 -> 0 | D43: ='DECOMPTE 1'!I42 -> 0 | E43: ='DECOMPTE 1'!O42 -> 0 | F43: ='DECOMPTE 1'!T42 -> 0 | G43: ='DECOMPTE 1'!V42 -> 0 | H43: ='DECOMPTE 1'!W42 -> 
B44: ='DECOMPTE 1'!G43 -> 0 | C44: ='DECOMPTE 1'!H43 -> 0 | D44: ='DECOMPTE 1'!I43 -> 0 | E44: ='DECOMPTE 1'!O43 -> 0 | F44: ='DECOMPTE 1'!T43 -> 0 | G44: ='DECOMPTE 1'!V43 -> 0 | H44: ='DECOMPTE 1'!W43 -> 
B45: ='DECOMPTE 1'!G44 -> 0 | C45: ='DECOMPTE 1'!H44 -> 0 | D45: ='DECOMPTE 1'!I44 -> 0 | E45: ='DECOMPTE 1'!O44 -> 0 | F45: ='DECOMPTE 1'!T44 -> 0 | G45: ='DECOMPTE 1'!V44 -> 0 | H45: ='DECOMPTE 1'!W44 -> 
B46: ='DECOMPTE 1'!G45 -> 0 | C46: ='DECOMPTE 1'!H45 -> 0 | D46: ='DECOMPTE 1'!I45 -> 0 | E46: ='DECOMPTE 1'!O45 -> 0 | F46: ='DECOMPTE 1'!T45 -> 0 | G46: ='DECOMPTE 1'!V45 -> 0 | H46: ='DECOMPTE 1'!W45 -> 
B47: ='DECOMPTE 1'!G46 -> 0 | C47: ='DECOMPTE 1'!H46 -> 0 | D47: ='DECOMPTE 1'!I46 -> 0 | E47: ='DECOMPTE 1'!O46 -> 0 | F47: ='DECOMPTE 1'!T46 -> 0 | G47: ='DECOMPTE 1'!V46 -> 0 | H47: ='DECOMPTE 1'!W46 -> 
B48: ='DECOMPTE 1'!G47 -> 0 | C48: ='DECOMPTE 1'!H47 -> 0 | D48: ='DECOMPTE 1'!I47 -> 0 | E48: ='DECOMPTE 1'!O47 -> 0 | F48: ='DECOMPTE 1'!T47 -> 0 | G48: ='DECOMPTE 1'!V47 -> 0 | H48: ='DECOMPTE 1'!W47 -> 
B49: ='DECOMPTE 1'!G48 -> 0 | C49: ='DECOMPTE 1'!H48 -> 0 | D49: ='DECOMPTE 1'!I48 -> 0 | E49: ='DECOMPTE 1'!O48 -> 0 | F49: ='DECOMPTE 1'!T48 -> 0 | G49: ='DECOMPTE 1'!V48 -> 0 | H49: ='DECOMPTE 1'!W48 -> 
B50: ='DECOMPTE 1'!G49 -> 0 | C50: ='DECOMPTE 1'!H49 -> 0 | D50: ='DECOMPTE 1'!I49 -> 0 | E50: ='DECOMPTE 1'!O49 -> 0 | F50: ='DECOMPTE 1'!T49 -> 0 | G50: ='DECOMPTE 1'!V49 -> 0 | H50: ='DECOMPTE 1'!W49 -> 
B51: ='DECOMPTE 1'!G50 -> 0 | C51: ='DECOMPTE 1'!H50 -> 0 | D51: ='DECOMPTE 1'!I50 -> 0 | E51: ='DECOMPTE 1'!O50 -> 0 | F51: ='DECOMPTE 1'!T50 -> 0 | G51: ='DECOMPTE 1'!V50 -> 0 | H51: ='DECOMPTE 1'!W50 -> 
B52: ='DECOMPTE 1'!G51 -> 0 | C52: ='DECOMPTE 1'!H51 -> 0 | D52: ='DECOMPTE 1'!I51 -> 0 | E52: ='DECOMPTE 1'!O51 -> 0 | F52: ='DECOMPTE 1'!T51 -> 0 | G52: ='DECOMPTE 1'!V51 -> 0 | H52: ='DECOMPTE 1'!W51 -> 
B53: ='DECOMPTE 1'!G52 -> 0 | C53: ='DECOMPTE 1'!H52 -> 0 | D53: ='DECOMPTE 1'!I52 -> 0 | E53: ='DECOMPTE 1'!O52 -> 0 | F53: ='DECOMPTE 1'!T52 -> 0 | G53: ='DECOMPTE 1'!V52 -> 0 | H53: ='DECOMPTE 1'!W52 -> 
B54: ='DECOMPTE 1'!G53 -> 0 | C54: ='DECOMPTE 1'!H53 -> 0 | D54: ='DECOMPTE 1'!I53 -> 0 | E54: ='DECOMPTE 1'!O53 -> 0 | F54: ='DECOMPTE 1'!T53 -> 0 | G54: ='DECOMPTE 1'!V53 -> 0 | H54: ='DECOMPTE 1'!W53 -> 
B55: ='DECOMPTE 1'!G54 -> 0 | C55: ='DECOMPTE 1'!H54 -> 0 | D55: ='DECOMPTE 1'!I54 -> 0 | E55: ='DECOMPTE 1'!O54 -> 0 | F55: ='DECOMPTE 1'!T54 -> 0 | G55: ='DECOMPTE 1'!V54 -> 0 | H55: ='DECOMPTE 1'!W54 -> 
B56: ='DECOMPTE 1'!G55 -> 0 | C56: ='DECOMPTE 1'!H55 -> 0 | D56: ='DECOMPTE 1'!I55 -> 0 | E56: ='DECOMPTE 1'!O55 -> 0 | F56: ='DECOMPTE 1'!T55 -> 0 | G56: ='DECOMPTE 1'!V55 -> 0 | H56: ='DECOMPTE 1'!W55 -> 
B57: ='DECOMPTE 2'!G7 -> 0 | C57: ='DECOMPTE 1'!H56 -> 0 | D57: ='DECOMPTE 1'!I56 -> 0 | E57: ='DECOMPTE 1'!O56 -> 0 | F57: ='DECOMPTE 1'!T56 -> 0 | G57: ='DECOMPTE 1'!V56 -> 0 | H57: ='DECOMPTE 1'!W56 -> 
B58: ='DECOMPTE 2'!G8 -> 0 | C58: ='DECOMPTE 1'!H57 -> 0 | D58: ='DECOMPTE 1'!I57 -> 0 | E58: ='DECOMPTE 1'!O57 -> 0 | F58: ='DECOMPTE 1'!T57 -> 0 | G58: ='DECOMPTE 1'!V57 -> 0 | H58: ='DECOMPTE 1'!W57 -> 
B59: ='DECOMPTE 2'!G7 -> 0 | C59: ='DECOMPTE 2'!H7 | D59: ='DECOMPTE 2'!K7 -> 0 | E59: ='DECOMPTE 2'!K7 -> 0 | F59: ='DECOMPTE 2'!L7 -> 0 | G59: ='DECOMPTE 2'!M7 -> 0 | H59: ='DECOMPTE 2'!N7 -> 0
B60: ='DECOMPTE 2'!G8 -> 0 | C60: ='DECOMPTE 2'!H8 | D60: ='DECOMPTE 2'!H9 | E60: ='DECOMPTE 2'!H10 | F60: ='DECOMPTE 2'!H11 | G60: ='DECOMPTE 2'!H12 | H60: ='DECOMPTE 2'!H13
B61: ='DECOMPTE 2'!G9 -> 0 | C61: ='DECOMPTE 2'!H9
B71: ='DECOMPTE 2'!G10 -> 0 | D71: ='DECOMPTE 1'!I58 -> 0 | E71: ='DECOMPTE 1'!O58 -> 0 | F71: ='DECOMPTE 1'!T58 -> 0 | G71: ='DECOMPTE 1'!V58 -> 0 | H71: ='DECOMPTE 1'!W58 -> 0
C72: OPERATIONS | D72: ='DECOMPTE 2'!J4 -> 0 | E72: ='DECOMPTE 2'!P6 -> 0 | F72: ='DECOMPTE 1'!L4 -> 0 | G72: ='DECOMPTE 2'!P5 -> 0 | H72: =(SUM(H6:H34)) -> 0
B76: MONTANTS DES OPERATIONS : | D76: =D72 -> 0 | F76: ='DECOMPTE 2'!U61+'DECOMPTE 1'!T4 -> 421.55 | G76: ='DECOMPTE 2'!W6 -> 0 | H76: ='DECOMPTE 2'!X6 -> 0
B77: MOINS DECOMPTE FRANCHISE Y C P DIVERS FRAIS A MA CHARGE | D77: =ABS('DECOMPTE 1'!W59) -> 0
B78: SOUS TOTAL | D78: =D76-D77 -> 0 | E78: =D78-D79 -> 0 | F78: =G80 -> MONTANT DEDUCTIBLE DES IMPOTS Y.C.P. 10 %
B79: MA PARTICIPATION 10 % | D79: ='DECOMPTE 1'!P59 -> 0
B80: SOLDE DE DIFFERENCE ENTRE MES AVANCES ET LES REMBOURSEMENTS | D80: ='DECOMPTE 2'!W6+'DECOMPTE 1'!W4 -> 0 | E80: NON PRIS EN CHARGE PAR L'ASSUREUR | F80: FRANCHISE PARTICIPATIONS NON PRIS EN CHARGE | G80: MONTANT DEDUCTIBLE DES IMPOTS Y.C.P. 10 %
B82: MONTANT REELEMENT REMBOURSE PAR L'ASSURANCE | H82: ='DECOMPTE 1'!Q59 -> 0

Sheet RECAPITULATION (2)
C5: ='DECOMPTE 1'!H2 -> Assura Basis - VOCAT Georges - 962 018 - 20.11.1939 | D5: Facturation totale décompte 2 | E5: ='DECOMPTE 1'!O3 -> Montants après DEDUCTIONS OU NON REMBOURSE OU FRANCHISE EN NEGATIF | F5: ='DECOMPTE 1'!T3 -> Montants Réellement payé par l'Assurance | G5: Montant non pris en charge par l'assurance | H5: ='DECOMPTE 1'!W3 -> Addition des montants pour Franchise & non payment Divers
B6: ='DECOMPTE 1'!G5 -> 0 | C6: ='DECOMPTE 1'!H5 -> 0 | D6: ='DECOMPTE 1'!I5 -> 0 | E6: ='DECOMPTE 1'!O5 -> 0 | F6: ='DECOMPTE 1'!T5 -> 0 | G6: ='DECOMPTE 1'!V5 -> 0 | H6: ='DECOMPTE 1'!W5 -> 
B7: ='DECOMPTE 1'!G6 -> 0 | C7: ='DECOMPTE 1'!H6 -> 0 | D7: ='DECOMPTE 1'!I6 -> 0 | E7: ='DECOMPTE 1'!O6 -> 0 | F7: ='DECOMPTE 1'!T6 -> 0 | G7: ='DECOMPTE 1'!V6 -> 0 | H7: ='DECOMPTE 1'!W6 -> 
B8: ='DECOMPTE 1'!G7 -> 0 | C8: ='DECOMPTE 1'!H7 -> 0 | D8: ='DECOMPTE 1'!I7 -> 0 | E8: ='DECOMPTE 1'!O7 -> 0 | F8: ='DECOMPTE 1'!T7 -> 0 | G8: ='DECOMPTE 1'!V7 -> 0 | H8: ='DECOMPTE 1'!W7 -> 
B9: ='DECOMPTE 1'!G8 -> 0 | C9: ='DECOMPTE 1'!H8 -> 0 | D9: ='DECOMPTE 1'!I8 -> 0 | E9: ='DECOMPTE 1'!O8 -> 0 | F9: ='DECOMPTE 1'!T8 -> 0 | G9: ='DECOMPTE 1'!V8 -> 0 | H9: ='DECOMPTE 1'!W8 -> 
B10: ='DECOMPTE 1'!G9 -> 0 | C10: ='DECOMPTE 1'!H9 -> 0 | D10: ='DECOMPTE 1'!I9 -> 0 | E10: ='DECOMPTE 1'!O9 -> 0 | F10: ='DECOMPTE 1'!T9 -> 0 | G10: ='DECOMPTE 1'!V9 -> 0 | H10: ='DECOMPTE 1'!W9 -> 
B11: ='DECOMPTE 1'!G10 -> 0 | C11: ='DECOMPTE 1'!H10 -> 0 | D11: ='DECOMPTE 1'!I10 -> 0 | E11: ='DECOMPTE 1'!O10 -> 0 | F11: ='DECOMPTE 1'!T10 -> 0 | G11: ='DECOMPTE 1'!V10 -> 0 | H11: ='DECOMPTE 1'!W10 -> 
B12: ='DECOMPTE 1'!G11 -> 0 | C12: ='DECOMPTE 1'!H11 -> 0 | D12: ='DECOMPTE 1'!I11 -> 0 | E12: ='DECOMPTE 1'!O11 -> 0 | F12: ='DECOMPTE 1'!T11 -> 0 | G12: ='DECOMPTE 1'!V11 -> 0 | H12: ='DECOMPTE 1'!W11 -> 
B13: ='DECOMPTE 1'!G12 -> 0 | C13: ='DECOMPTE 1'!H12 -> 0 | D13: ='DECOMPTE 1'!I12 -> 0 | E13: ='DECOMPTE 1'!O12 -> 0 | F13: ='DECOMPTE 1'!T12 -> 0 | G13: ='DECOMPTE 1'!V12 -> 0 | H13: ='DECOMPTE 1'!W12 -> 
B14: ='DECOMPTE 1'!G13 -> 0 | C14: ='DECOMPTE 1'!H13 -> 0 | D14: ='DECOMPTE 1'!I13 -> 0 | E14: ='DECOMPTE 1'!O13 -> 0 | F14: ='DECOMPTE 1'!T13 -> 0 | G14: ='DECOMPTE 1'!V13 -> 0 | H14: ='DECOMPTE 1'!W13 -> 
B15: ='DECOMPTE 1'!G14 -> 0 | C15: ='DECOMPTE 1'!H14 -> 0 | D15: ='DECOMPTE 1'!I14 -> 0 | E15: ='DECOMPTE 1'!O14 -> 0 | F15: ='DECOMPTE 1'!T14 -> 19.1 | G15: ='DECOMPTE 1'!V14 -> 0 | H15: ='DECOMPTE 1'!W14 -> 
B16: ='DECOMPTE 1'!G15 -> 0 | C16: ='DECOMPTE 1'!H15 -> 0 | D16: ='DECOMPTE 1'!I15 -> 0 | E16: ='DECOMPTE 1'!O15 -> 0 | F16: ='DECOMPTE 1'!T15 -> 6.95 | G16: ='DECOMPTE 1'!V15 -> 0 | H16: ='DECOMPTE 1'!W15 -> 
B17: ='DECOMPTE 1'!G16 -> 0 | C17: ='DECOMPTE 1'!H16 -> 0 | D17: ='DECOMPTE 1'!I16 -> 0 | E17: ='DECOMPTE 1'!O16 -> 0 | F17: ='DECOMPTE 1'!T16 -> 129.25 | G17: ='DECOMPTE 1'!V16 -> 0 | H17: ='DECOMPTE 1'!W16 -> 
B18: ='DECOMPTE 1'!G17 -> 0 | C18: ='DECOMPTE 1'!H17 -> 0 | D18: ='DECOMPTE 1'!I17 -> 0 | E18: ='DECOMPTE 1'!O17 -> 0 | F18: ='DECOMPTE 1'!T17 -> 104.15 | G18: ='DECOMPTE 1'!V17 -> 0 | H18: ='DECOMPTE 1'!W17 -> 
B19: ='DECOMPTE 1'!G18 -> 0 | C19: ='DECOMPTE 1'!H18 -> 0 | D19: ='DECOMPTE 1'!I18 -> 0 | E19: ='DECOMPTE 1'!O18 -> 0 | F19: ='DECOMPTE 1'!T18 -> 0 | G19: ='DECOMPTE 1'!V18 -> 0 | H19: ='DECOMPTE 1'!W18 -> 
B20: ='DECOMPTE 1'!G19 -> 0 | C20: ='DECOMPTE 1'!H19 -> 0 | D20: ='DECOMPTE 1'!I19 -> 0 | E20: ='DECOMPTE 1'!O19 -> 0 | F20: ='DECOMPTE 1'!T19 -> 13.95 | G20: ='DECOMPTE 1'!V19 -> 0 | H20: ='DECOMPTE 1'!W19 -> 
B21: ='DECOMPTE 1'!G20 -> 0 | C21: ='DECOMPTE 1'!H20 -> 0 | D21: ='DECOMPTE 1'!I20 -> 0 | E21: ='DECOMPTE 1'!O20 -> 0 | F21: ='DECOMPTE 1'!T20 -> 31.3 | G21: ='DECOMPTE 1'!V20 -> 0 | H21: ='DECOMPTE 1'!W20 -> 
B22: ='DECOMPTE 1'!G21 -> 0 | C22: ='DECOMPTE 1'!H21 -> 0 | D22: ='DECOMPTE 1'!I21 -> 0 | E22: ='DECOMPTE 1'!O21 -> 0 | F22: ='DECOMPTE 1'!T21 -> 5.3 | G22: ='DECOMPTE 1'!V21 -> 0 | H22: ='DECOMPTE 1'!W21 -> 
B23: ='DECOMPTE 1'!G22 -> 0 | C23: ='DECOMPTE 1'!H22 -> 0 | D23: ='DECOMPTE 1'!I22 -> 0 | E23: ='DECOMPTE 1'!O22 -> 0 | F23: ='DECOMPTE 1'!T22 -> 111.55 | G23: ='DECOMPTE 1'!V22 -> 0 | H23: ='DECOMPTE 1'!W22 -> 
B24: ='DECOMPTE 1'!G23 -> 0 | C24: ='DECOMPTE 1'!H23 -> 0 | D24: ='DECOMPTE 1'!I23 -> 0 | E24: ='DECOMPTE 1'!O23 -> 0 | F24: ='DECOMPTE 1'!T23 -> 0 | G24: ='DECOMPTE 1'!V23 -> 0 | H24: ='DECOMPTE 1'!W23 -> 
B25: ='DECOMPTE 1'!G24 -> 0 | C25: ='DECOMPTE 1'!H24 -> 0 | D25: ='DECOMPTE 1'!I24 -> 0 | E25: ='DECOMPTE 1'!O24 -> 0 | F25: ='DECOMPTE 1'!T24 -> 0 | G25: ='DECOMPTE 1'!V24 -> 0 | H25: ='DECOMPTE 1'!W24 -> 
B26: ='DECOMPTE 1'!G25 -> 0 | C26: ='DECOMPTE 1'!H25 -> 0 | D26: ='DECOMPTE 1'!I25 -> 0 | E26: ='DECOMPTE 1'!O25 -> 0 | F26: ='DECOMPTE 1'!T25 -> 0 | G26: ='DECOMPTE 1'!V25 -> 0 | H26: ='DECOMPTE 1'!W25 -> 
B27: ='DECOMPTE 1'!G26 -> 0 | C27: ='DECOMPTE 1'!H26 -> 0 | D27: ='DECOMPTE 1'!I26 -> 0 | E27: ='DECOMPTE 1'!O26 -> 0 | F27: ='DECOMPTE 1'!T26 -> 0 | G27: ='DECOMPTE 1'!V26 -> 0 | H27: ='DECOMPTE 1'!W26 -> 
B28: ='DECOMPTE 1'!G27 -> 0 | C28: ='DECOMPTE 1'!H27 -> 0 | D28: ='DECOMPTE 1'!I27 -> 0 | E28: ='DECOMPTE 1'!O27 -> 0 | F28: ='DECOMPTE 1'!T27 -> 0 | G28: ='DECOMPTE 1'!V27 -> 0 | H28: ='DECOMPTE 1'!W27 -> 
B29: ='DECOMPTE 1'!G28 -> 0 | C29: ='DECOMPTE 1'!H28 -> 0 | D29: ='DECOMPTE 1'!I28 -> 0 | E29: ='DECOMPTE 1'!O28 -> 0 | F29: ='DECOMPTE 1'!T28 -> 0 | G29: ='DECOMPTE 1'!V28 -> 0 | H29: ='DECOMPTE 1'!W28 -> 0
B30: ='DECOMPTE 1'!G29 -> 0 | C30: ='DECOMPTE 1'!H29 -> 0 | D30: ='DECOMPTE 1'!I29 -> 0 | E30: ='DECOMPTE 1'!O29 -> 0 | F30: ='DECOMPTE 1'!T29 -> 0 | G30: ='DECOMPTE 1'!V29 -> 0 | H30: ='DECOMPTE 1'!W29 -> 0
B31: ='DECOMPTE 1'!G30 -> 0 | C31: ='DECOMPTE 1'!H30 -> 0 | D31: ='DECOMPTE 1'!I30 -> 0 | E31: ='DECOMPTE 1'!O30 -> 0 | F31: ='DECOMPTE 1'!T30 -> 0 | G31: ='DECOMPTE 1'!V30 -> 0 | H31: ='DECOMPTE 1'!W30 -> 0
B32: ='DECOMPTE 1'!G31 -> 0 | C32: ='DECOMPTE 1'!H31 -> 0 | D32: ='DECOMPTE 1'!I31 -> 0 | E32: ='DECOMPTE 1'!O31 -> 0 | F32: ='DECOMPTE 1'!T31 -> 0 | G32: ='DECOMPTE 1'!V31 -> 0 | H32: ='DECOMPTE 1'!W31 -> 0
B33: ='DECOMPTE 1'!G32 -> 0 | C33: ='DECOMPTE 1'!H32 -> 0 | D33: ='DECOMPTE 1'!I32 -> 0 | E33: ='DECOMPTE 1'!O32 -> 0 | F33: ='DECOMPTE 1'!T32 -> 0 | G33: ='DECOMPTE 1'!V32 -> 0 | H33: ='DECOMPTE 1'!W32 -> 0
B34: ='DECOMPTE 1'!G33 -> 0 | C34: ='DECOMPTE 1'!H33 -> 0 | D34: ='DECOMPTE 1'!I33 -> 0 | E34: ='DECOMPTE 1'!O33 -> 0 | F34: ='DECOMPTE 1'!T33 -> 0 | G34: ='DECOMPTE 1'!V33 -> 0 | H34: ='DECOMPTE 1'!W33 -> 
B35: ='DECOMPTE 1'!G34 -> 0 | C35: ='DECOMPTE 1'!H34 -> 0 | D35: ='DECOMPTE 1'!I34 -> 0 | E35: ='DECOMPTE 1'!O34 -> 0 | F35: ='DECOMPTE 1'!T34 -> 0 | G35: ='DECOMPTE 1'!V34 -> 0 | H35: ='DECOMPTE 1'!W34 -> 
B36: ='DECOMPTE 1'!G35 -> 0 | C36: ='DECOMPTE 1'!H35 -> 0 | D36: ='DECOMPTE 1'!I35 -> 0 | E36: ='DECOMPTE 1'!O35 -> 0 | F36: ='DECOMPTE 1'!T35 -> 0 | G36: ='DECOMPTE 1'!V35 -> 0 | H36: ='DECOMPTE 1'!W35 -> 
B37: ='DECOMPTE 1'!G36 -> 0 | C37: ='DECOMPTE 1'!H36 -> 0 | D37: ='DECOMPTE 1'!I36 -> 0 | E37: ='DECOMPTE 1'!O36 -> 0 | F37: ='DECOMPTE 1'!T36 -> 0 | G37: ='DECOMPTE 1'!V36 -> 0 | H37: ='DECOMPTE 1'!W36 -> 
B38: ='DECOMPTE 1'!G37 -> 0 | C38: ='DECOMPTE 1'!H37 -> 0 | D38: ='DECOMPTE 1'!I37 -> 0 | E38: ='DECOMPTE 1'!O37 -> 0 | F38: ='DECOMPTE 1'!T37 -> 0 | G38: ='DECOMPTE 1'!V37 -> 0 | H38: ='DECOMPTE 1'!W37 -> 
B39: ='DECOMPTE 1'!G38 -> 0 | C39: ='DECOMPTE 1'!H38 -> 0 | D39: ='DECOMPTE 1'!I38 -> 0 | E39: ='DECOMPTE 1'!O38 -> 0 | F39: ='DECOMPTE 1'!T38 -> 0 | G39: ='DECOMPTE 1'!V38 -> 0 | H39: ='DECOMPTE 1'!W38 -> 
B40: ='DECOMPTE 1'!G39 -> 0 | C40: ='DECOMPTE 1'!H39 -> 0 | D40: ='DECOMPTE 1'!I39 -> 0 | E40: ='DECOMPTE 1'!O39 -> 0 | F40: ='DECOMPTE 1'!T39 -> 0 | G40: ='DECOMPTE 1'!V39 -> 0 | H40: ='DECOMPTE 1'!W39 -> 
B41: ='DECOMPTE 1'!G40 -> 0 | C41: ='DECOMPTE 1'!H40 -> 0 | D41: ='DECOMPTE 1'!I40 -> 0 | E41: ='DECOMPTE 1'!O40 -> 0 | F41: ='DECOMPTE 1'!T40 -> 0 | G41: ='DECOMPTE 1'!V40 -> 0 | H41: ='DECOMPTE 1'!W40 -> 
B42: ='DECOMPTE 1'!G41 -> 0 | C42: ='DECOMPTE 1'!H41 -> 0 | D42: ='DECOMPTE 1'!I41 -> 0 | E42: ='DECOMPTE 1'!O41 -> 0 | F42: ='DECOMPTE 1'!T41 -> 0 | G42: ='DECOMPTE 1'!V41 -> 0 | H42: ='DECOMPTE 1'!W41 -> 
B43: ='DECOMPTE 1'!G42 -> 0 | C43: ='DECOMPTE 1'!H42 -> 0 | D43: ='DECOMPTE 1'!I42 -> 0 | E43: ='DECOMPTE 1'!O42 -> 0 | F43: ='DECOMPTE 1'!T42 -> 0 | G43: ='DECOMPTE 1'!V42 -> 0 | H43: ='DECOMPTE 1'!W42 -> 
B44: ='DECOMPTE 1'!G43 -> 0 | C44: ='DECOMPTE 1'!H43 -> 0 | D44: ='DECOMPTE 1'!I43 -> 0 | E44: ='DECOMPTE 1'!O43 -> 0 | F44: ='DECOMPTE 1'!T43 -> 0 | G44: ='DECOMPTE 1'!V43 -> 0 | H44: ='DECOMPTE 1'!W43 -> 
B45: ='DECOMPTE 1'!G44 -> 0 | C45: ='DECOMPTE 1'!H44 -> 0 | D45: ='DECOMPTE 1'!I44 -> 0 | E45: ='DECOMPTE 1'!O44 -> 0 | F45: ='DECOMPTE 1'!T44 -> 0 | G45: ='DECOMPTE 1'!V44 -> 0 | H45: ='DECOMPTE 1'!W44 -> 
B46: ='DECOMPTE 1'!G45 -> 0 | C46: ='DECOMPTE 1'!H45 -> 0 | D46: ='DECOMPTE 1'!I45 -> 0 | E46: ='DECOMPTE 1'!O45 -> 0 | F46: ='DECOMPTE 1'!T45 -> 0 | G46: ='DECOMPTE 1'!V45 -> 0 | H46: ='DECOMPTE 1'!W45 -> 
B47: ='DECOMPTE 1'!G46 -> 0 | C47: ='DECOMPTE 1'!H46 -> 0 | D47: ='DECOMPTE 1'!I46 -> 0 | E47: ='DECOMPTE 1'!O46 -> 0 | F47: ='DECOMPTE 1'!T46 -> 0 | G47: ='DECOMPTE 1'!V46 -> 0 | H47: ='DECOMPTE 1'!W46 -> 
B48: ='DECOMPTE 1'!G47 -> 0 | C48: ='DECOMPTE 1'!H47 -> 0 | D48: ='DECOMPTE 1'!I47 -> 0 | E48: ='DECOMPTE 1'!O47 -> 0 | F48: ='DECOMPTE 1'!T47 -> 0 | G48: ='DECOMPTE 1'!V47 -> 0 | H48: ='DECOMPTE 1'!W47 -> 
B49: ='DECOMPTE 1'!G48 -> 0 | C49: ='DECOMPTE 1'!H48 -> 0 | D49: ='DECOMPTE 1'!I48 -> 0 | E49: ='DECOMPTE 1'!O48 -> 0 | F49: ='DECOMPTE 1'!T48 -> 0 | G49: ='DECOMPTE 1'!V48 -> 0 | H49: ='DECOMPTE 1'!W48 -> 
B50: ='DECOMPTE 1'!G49 -> 0 | C50: ='DECOMPTE 1'!H49 -> 0 | D50: ='DECOMPTE 1'!I49 -> 0 | E50: ='DECOMPTE 1'!O49 -> 0 | F50: ='DECOMPTE 1'!T49 -> 0 | G50: ='DECOMPTE 1'!V49 -> 0 | H50: ='DECOMPTE 1'!W49 -> 
B51: ='DECOMPTE 1'!G50 -> 0 | C51: ='DECOMPTE 1'!H50 -> 0 | D51: ='DECOMPTE 1'!I50 -> 0 | E51: ='DECOMPTE 1'!O50 -> 0 | F51: ='DECOMPTE 1'!T50 -> 0 | G51: ='DECOMPTE 1'!V50 -> 0 | H51: ='DECOMPTE 1'!W50 -> 
B52: ='DECOMPTE 1'!G51 -> 0 | C52: ='DECOMPTE 1'!H51 -> 0 | D52: ='DECOMPTE 1'!I51 -> 0 | E52: ='DECOMPTE 1'!O51 -> 0 | F52: ='DECOMPTE 1'!T51 -> 0 | G52: ='DECOMPTE 1'!V51 -> 0 | H52: ='DECOMPTE 1'!W51 -> 
B53: ='DECOMPTE 1'!G52 -> 0 | C53: ='DECOMPTE 1'!H52 -> 0 | D53: ='DECOMPTE 1'!I52 -> 0 | E53: ='DECOMPTE 1'!O52 -> 0 | F53: ='DECOMPTE 1'!T52 -> 0 | G53: ='DECOMPTE 1'!V52 -> 0 | H53: ='DECOMPTE 1'!W52 -> 
B54: ='DECOMPTE 1'!G53 -> 0 | C54: ='DECOMPTE 1'!H53 -> 0 | D54: ='DECOMPTE 1'!I53 -> 0 | E54: ='DECOMPTE 1'!O53 -> 0 | F54: ='DECOMPTE 1'!T53 -> 0 | G54: ='DECOMPTE 1'!V53 -> 0 | H54: ='DECOMPTE 1'!W53 -> 
B55: ='DECOMPTE 1'!G54 -> 0 | C55: ='DECOMPTE 1'!H54 -> 0 | D55: ='DECOMPTE 1'!I54 -> 0 | E55: ='DECOMPTE 1'!O54 -> 0 | F55: ='DECOMPTE 1'!T54 -> 0 | G55: ='DECOMPTE 1'!V54 -> 0 | H55: ='DECOMPTE 1'!W54 -> 
B56: ='DECOMPTE 1'!G55 -> 0 | C56: ='DECOMPTE 1'!H55 -> 0 | D56: ='DECOMPTE 1'!I55 -> 0 | E56: ='DECOMPTE 1'!O55 -> 0 | F56: ='DECOMPTE 1'!T55 -> 0 | G56: ='DECOMPTE 1'!V55 -> 0 | H56: ='DECOMPTE 1'!W55 -> 
B57: ='DECOMPTE 2'!G7 -> 0 | C57: ='DECOMPTE 1'!H56 -> 0 | D57: ='DECOMPTE 1'!I56 -> 0 | E57: ='DECOMPTE 1'!O56 -> 0 | F57: ='DECOMPTE 1'!T56 -> 0 | G57: ='DECOMPTE 1'!V56 -> 0 | H57: ='DECOMPTE 1'!W56 -> 
B58: ='DECOMPTE 2'!G8 -> 0 | C58: ='DECOMPTE 1'!H57 -> 0 | D58: ='DECOMPTE 1'!I57 -> 0 | E58: ='DECOMPTE 1'!O57 -> 0 | F58: ='DECOMPTE 1'!T57 -> 0 | G58: ='DECOMPTE 1'!V57 -> 0 | H58: ='DECOMPTE 1'!W57 -> 
B59: ='DECOMPTE 2'!G7 -> 0 | C59: ='DECOMPTE 2'!H7 | D59: ='DECOMPTE 2'!K7 -> 0 | E59: ='DECOMPTE 2'!K7 -> 0 | F59: ='DECOMPTE 2'!L7 -> 0 | G59: ='DECOMPTE 2'!M7 -> 0 | H59: ='DECOMPTE 2'!N7 -> 0
B60: ='DECOMPTE 2'!G8 -> 0 | C60: ='DECOMPTE 2'!H8 | D60: ='DECOMPTE 2'!H9 | E60: ='DECOMPTE 2'!H10 | F60: ='DECOMPTE 2'!H11 | G60: ='DECOMPTE 2'!H12 | H60: ='DECOMPTE 2'!H13
B61: ='DECOMPTE 2'!G9 -> 0 | C61: ='DECOMPTE 2'!H9
B71: ='DECOMPTE 2'!G10 -> 0 | D71: ='DECOMPTE 1'!I58 -> 0 | E71: ='DECOMPTE 1'!O58 -> 0 | F71: ='DECOMPTE 1'!T58 -> 0 | G71: ='DECOMPTE 1'!V58 -> 0 | H71: ='DECOMPTE 1'!W58 -> 0
C72: OPERATIONS | D72: ='DECOMPTE 2'!W5 -> 0 | E72: ='DECOMPTE 2'!P6 -> 0 | F72: 0 | G72: ='DECOMPTE 2'!W5 -> 0 | H72: =(SUM(H6:H34)) -> 0
B76: MONTANTS DES OPERATIONS : | D76: =D72 -> 0 | E76: ='DECOMPTE 2'!P5+'DECOMPTE 1'!O59 -> 0 | F76: =F72 -> 0 | G76: ='DECOMPTE 2'!W6 -> 0 | H76: ='DECOMPTE 2'!X6 -> 0
B77: MOINS DECOMPTE FRANCHISE | D77: =ABS('DECOMPTE 1'!W59) -> 0
B78: SOUS TOTAL | D78: =D76-D77 -> 0 | E78: =D78-D79 -> 0 | F78: MONTANT A REMBOURSER APRES DEDUCTION DU 10 %
B79: MA PARTICIPATION 10 % | D79: ='DECOMPTE 1'!P59 -> 0
B80: SOLDE DE DIFFERENCE ENTRE MES AVANCES ET LES REMBOURSEMENTS | D80: ='DECOMPTE 2'!W6+'DECOMPTE 1'!W4 -> 0 | E80: NON PRIS EN CHARGE PAR L'ASSUREUR | F80: FRANCHISE PARTICIPATIONS NON PRIS EN CHARGE | G80: MONTANT DEDUCTIBLE DES IMPOTS
B82: MONTANT REELEMENT REMBOURSE PAR L'ASSURANCE | D82: ='DECOMPTE 2'!U6 -> 421.55
B84: SOLDE DECOMPTE S.D.K | D84: ='TOTALISER XX'!G32 -> 123.235

Sheet TOTALISER XX
B1: FEUILLE TOTALISER A | D1: DECOMPTE 1 | E1: DECOMPTE 2 | G1: REGLES JOINTES | I1: ALLER A TOTALISER B
B4: XX
B7: DATES | C7: CODE % | D7: Factures Payé par GHV à DSK ou MONTANT EN DEPÔT | E7: Montants Déboursés OU Participation de GHV | F7: Remboursement ou Avances de DSK | G7: SOMME SOLDE en plus ou en moins | K7: calcul sous déduction des frais G.H.V
B8: 2022-10-25 | C8: 1 | D8: 213.65 | E8: =IF(C8<>"",D8*10%,"") -> 21.365 | F8: 42.35 | G8: =D8-E8+F8 -> 234.635 | K8: =G8 -> 234.635 | L8: SOLDE
B9: 2023-01-18 | D9: -55.7 | G9: =IF(C9<>"",D9-E9,D9) -> -55.7 | J9: =IF(F9<>"",F9,"") ->  | K9: =G9 -> -55.7 | L9: RITALINE
B10: 2023-08-23 | D10: -55.7 | G10: -55.7 | K10: -55.7 | L10: RITALINE
G11: 0 | K11: 0
G12: 0 | K12: 0
G13: 0 | K13: 0
G14: 0 | K14: 0
G15: 0 | K15: 0
G16: 0 | K16: 0
G17: 0 | K17: 0
G18: =IF(C18<>"",D18-E18,D18) -> 0 | K18: 0
G19: 0 | K19: 0
G20: 0 | K20: 0
G21: 0 | K21: 0
G22: 0 | K22: 0
G23: 0 | K23: 0
G24: 0 | K24: 0
G25: 0 | K25: 0
G26: 0 | K26: 0
G27: 0 | K27: 0
G28: 0 | K28: 0
G29: 0 | K29: 0
G30: 0 | K30: 0
G31: =D31-E31 -> 0 | K31: 0
B32: Totaux | D32: =SUM(D8:D31) -> 102.25 | E32: =SUM(E8:E31) -> 21.365 | F32: =SUM(F8:F31) -> 42.35 | G32: =D32-E32+F32 -> 123.235 | K32: =SUM(K9:K31) -> -111.4 | L32: SOUS TOTAL
B33: Colonne montants Facturation - Colonne Montants = Payé par G.H.V. | K33: =G32 -> 123.235 | L33: SOLDE FINAL
B34: Colonne bleu = Avances DSK - Colnne Sommes = solde

Sheet TOTALISER B
B1: FEUILLE TOTALISER B | C1: INDEX | E1: REGLES JOINTES | G1: ALLER A TOTALISER A
B3: Addition/Soustraction | G3: Addition/Soustraction
B6: Définition | C6: Montants + | D6: Montant - | E6: Sommes +/- | G6: Définition | H6: Montants + | I6: Montant - | J6: Sommes +/-
B31: Totaux | C31: =SUM(C7:C30) -> 0 | D31: =SUM(D7:D30) -> 0 | E31: =C31-D31 -> 0 | G31: Totaux | H31: =SUM(H7:H30) -> 0 | I31: =SUM(I7:I30) -> 0 | J31: =H31-I31 -> 0
E32: =SUM(E7:E30) -> 0
E33: =IF(C33>0,E32+C33,"") -> 
C44: 003 CALCULETTE

Sheet TOTALISER A (2)
B1: FEUILLE CHARGES REGROUPEES | D1: DECOMPTE 1 | E1: DECOMPTE 2 | G1: REGLES JOINTES | I1: ALLER A TOTALISER B
B4: XX
B7: DATES | C7: CODE % | D7: Factures Payé par GHV à DSK ou MONTANT EN DEPÔT | E7: Montants Déboursés OU Participation de GHV | F7: Remboursement ou Avances de XX | G7: SOMME SOLDE en plus ou en moins | K7: calcul sous déduction des frais G.H.V
B9: 2023-03-17 | C9: 0.1 | D9: 319.25 | E9: =IF(C9<>"",D9*10%,"") -> 31.925 | G9: =IF(C9<>"",D9-E9,D9) -> 287.325 | K9: =IF(C9<>"",G9,"") -> 287.325 | L9: =IF(G9>0,"prix achat ./.participation","") -> prix achat ./.participation
B10: 2023-04-20 | C10: 0.1 | D10: 198.25 | E10: 19.825 | G10: 178.425 | K10: =IF(C10<>"",G10,"") -> 178.425 | L10: =IF(G10>0,"prix achat ./.participation","") -> prix achat ./.participation
B11: 2023-05-24 | C11: 0.1 | D11: 17.65 | E11: 1.765 | G11: 15.885 | K11: =IF(G11<>"",G11,"") -> 15.885 | L11: prix achat ./.participation
B12: 2023-05-24 | C12: 0.1 | D12: 213.65 | E12: 21.365 | G12: 192.285 | K12: 192.285 | L12: prix achat ./.participation
B13: 2023-05-24 | G13: -192.29 | K13: -192.29
G14: 0 | K14: 0
G15: =IF(C15<>"",D15-E15,D15) -> 0 | K15: 0 | L15: =IF(K15>0,"prix achat ./.participation","") -> 
G16: 0 | K16: 0
G17: 0 | K17: 0
G18: 0 | K18: 0
G19: 0 | K19: 0
G20: 0 | K20: 0
G21: 0 | K21: 0
G22: 0 | K22: 0
G23: 0 | K23: 0
G24: 0 | K24: 0
G25: 0 | K25: 0
G26: 0 | K26: 0
G27: 0 | K27: 0
G28: 0 | K28: 0
G29: 0 | K29: 0
G30: 0 | K30: 0
G31: 0 | K31: 0
B32: Totaux | D32: =SUM(D9:D31) -> 748.8 | E32: =SUM(E8:E31) -> 74.88 | F32: =SUM(F8:F31) -> 0 | G32: =SUM(G9:G31) -> 481.63 | K32: =SUM(K9:K31) -> 481.63 | L32: total
B33: Colonne montants Facturation - Colonne Montants = Payé par G.H.V. (0U % PARTICIPATION)
B34: Colonne bleu = Avances - Colnne Sommes = solde

Sheet CALCULS
C1: DECOMPTE 1 | E1: DECOMPTE 2
B3: Addition/Soustraction | H3: Calculation d'un pourcentage
B5: Définition | C5: Montants + | D5: Montant - | E5: Sommes +/- | G5: Exemple | H5: Si | I5: 350 | J5: est égal à | K5: 100 | L5: %
H7: Alors | I7: 25 | J7: est égal à | K7: X | L7: %
H9: Si | I9: 143.6 | J9: = | K9: 100 | L9: %
H10: Alors | I10: 14.35 | J10: = | K10: =IF(I9<>"",I10/I9*K9,"") -> 9.993036212 | L10: %
H12: RÉSULTAT | J12: = | K12: =K10 -> 9.993036212 | L12: %
G14: On peut calculer la somme y compris la TVA : expl. 108 %
I17: DIVISION
H18: Montant | I18: 100 | J18: Divisé par | K18: 25
H20: = | I20: =IF(I18<>"",I18/K18,"") -> 4
I24: MULTIPLIER
H25: Montant | I25: 100 | J25: Multiplié par | K25: 25
H27: = | I27: =IF(I25<>"",I25*K25,"") -> 2500
H29: CALCUL CHANGE DES DVISES
B30: Totaux | C30: =SUM(C6:C29) -> 0 | D30: =SUM(D6:D29) -> 0 | E30: =C30-D30 -> 0
E31: =SUM(E6:E29) -> 0 | H31: Montant | J31: Cours | K31: Devises
B32: CALCULER LE POURCENTAGE A PARTIR DU
B33: Montant Rembousé | C33: Divisé par 90 | D33: 0.01 | E33: X 100 | H33: 100 | J33: 0.85 | K33: =H33*J33/100 -> 0.85
B34: 55 | C34: 90 | D34: =B34/C34 -> 0.6111111111 | E34: =D34*100 -> 61.11111111
B35: 185 | C35: 90 | D35: =B35/90 -> 2.055555556 | E35: =D35*100 -> 205.5555556
E36: =C36-D36 -> 0
C43: 003 CALCULETTE

Sheet TOTAL CHARGES
B1: FEUILLE TOTALISER A | C1: DECOMPTE 1 | D1: DECOMPTE 2 | F1: REGLES JOINTES | H1: ALLER A TOTALISER B
D4: MONTANTS MICHELINE A PAYER
B7: DATES | C7: Factures Payée ou MONTANTS A PAYES | D7: Montants Déboursés | E7: Remboursement | F7: SOMME SOLDE en plus ou en moins | J7: calcul sous déduction des frais G.H.V
C8: 0 | D8: 0 | F8: =C8-D8 -> 0
B9: 2023-03-24 | C9: 319.25 | D9: 0 | F9: 319.25 | J9: =C9-D9 -> 319.25 | K9: =IF(J9>0,"Franchise./.participation","") -> Franchise./.participation
B10: 2023-04-26 | C10: 214.4 | D10: 0 | F10: 214.4 | J10: =C10-D10 -> 214.4 | K10: =IF(J10>0,"Franchise./.participation","") -> Franchise./.participation
B11: 2023-05-09 | C11: 119 | D11: 0 | F11: 119 | J11: 119 | K11: =IF(J11>0,"Franchise./.participation","") -> Franchise./.participation
B12: 00:00:00 | C12: 0 | D12: 0 | F12: 0 | G12: 0 | J12: 0
F13: 0 | J13: 0
F14: 0 | J14: 0
F15: 0 | J15: 0
F16: 0 | J16: 0
F17: 0 | J17: 0
F18: 0 | J18: 0
F19: 0 | J19: 0
F20: 0 | J20: 0
F21: 0 | J21: 0
F22: 0 | J22: 0
F23: 0 | J23: 0
F24: 0 | J24: 0
F25: 0 | J25: 0
F26: 0 | J26: 0
F27: 0 | J27: 0
F28: 0 | J28: 0
F29: 0 | J29: 0
F30: 0 | J30: 0
F31: 0 | J31: 0
B32: Totaux | C32: =SUM(C8:C31) -> 652.65 | D32: =SUM(D8:D31) -> 0 | E32: =SUM(E8:E31) -> 0 | F32: =C32-D32+E32 -> 652.65 | J32: =SUM(J9:J31) -> 652.65 | K32: =IF(J32>0,"Total","") -> Total
B33: Colonne montants Facturation - Colonne Montants = Payé par G.H.V.
B34: Colonne bleu = Avances DSK - Colnne Sommes = solde

Sheet COURRIER1
B3: ='DECOMPTE 1'!H2 -> Assura Basis - VOCAT Georges - 962 018 - 20.11.1939
B6: ='LETTRE D''ENVOI'!B6 -> Georges VOCAT | F6: Nyon le | G6: =TODAY() -> 2023-12-03
B7: =DONNEES!B10 -> Rue de la Fléchère 17
B8: =DONNEES!B11 -> CH-1260 NYON
B10: =DONNEES!B14 -> CCP - 12-56914-9 | F10: =DONNEES!D3 -> ASSURA
B11: Mail : ghv1260@outlook.com | F11: =DONNEES!D4 -> Assura-Basis SA
F12: =DONNEES!D5 -> Case Postale 4
F13: =DONNEES!D6 -> CH-1052 Le Mont-sur-Lausanne
B16: Concerne : TRAITEMENT(S) | E16: =DONNEES!B18 -> 2024
B18: Mesdames, Messieurs,
B20: Veuillez trouver ci-joint l'(es) original(aux) ou copie(s) de(s) facture(s) dont j'ai effectué le(s) règlement(s) ou dont je demande le(s) remboursement(s) anticipé(s).
B24: En vous remerciant de me faire parvenir votre participation.
B26: -
B32: Avec l'expression de mes salutations les meilleures.
B34: Georges Vocat

Sheet COURRIER2
B3: ='DECOMPTE 1'!H2 -> Assura Basis - VOCAT Georges - 962 018 - 20.11.1939
B6: ='LETTRE D''ENVOI'!B6 -> Georges VOCAT | F6: Nyon le | G6: =TODAY() -> 2023-12-03
B7: =DONNEES!B10 -> Rue de la Fléchère 17
B8: =DONNEES!B11 -> CH-1260 NYON
B10: =DONNEES!B14 -> CCP - 12-56914-9 | F10: =DONNEES!D3 -> ASSURA
B11: ghv1260@outlook.com | F11: =DONNEES!D4 -> Assura-Basis SA
F12: =DONNEES!D5 -> Case Postale 4
F13: =DONNEES!D6 -> CH-1052 Le Mont-sur-Lausanne
B16: Concerne : TRAITEMENT(S) | C16: =DONNEES!B18 -> 2024
B18: Mesdames, Messieurs,
B22: En vous souhaitant bonne réception de ce qui précède et en vous remerciant par avance de votre envoi.
B26: -
B32: Avec l'expression de mes salutations distinguées.
B34: Georges Vocat

Sheet COURRIER INDEPENDANT
B3: Assura Basis - VOCAT Micheline - 962 020 - 16.06.1941
B6: Micheline & Georges VOCAT | F6: Nyon le | G6: =TODAY() -> 2023-12-03
B7: =DONNEES!B10 -> Rue de la Fléchère 17
B8: =DONNEES!B11 -> CH-1260 NYON
F9: HOPITAL DE NYON
B10: =DONNEES!B14 -> CCP - 12-56914-9 | F10: Service Comptabilité
F13: CH-1260 NYON
B16: Concerne : TRAITEMENT(S) | C16: =DONNEES!B18 -> 2024
B17: DEMANDE DE COPIE DES FACTURES ET DES RAPPORTS MALADIES ET/OU ACCIDENT. CONCERNANT M. GEORGES ET MME. MICHELINE VOCAT
B18: Mesdames, Messieurs,
B32: Avec l'expression de mes salutations distinguées.
B34: Micheline & Georges VOCAT

Sheet JOINTES
E1: INDEX | I1: TOTALISER A
B2: DENOMINATEUR | D2: REGLES DE TROIS CONJOINTES | I2: NUMERATEUR | L2: ANTECEDENTS | O2: CONSEQUENTS
B3: CHF | E3: x | F3: =IF(E3<>"","=","") -> = | G3: 100 | H3: KG | L3: =E3 -> x | O3: =G3 -> 100 | P3: =O3 -> 100
B4: =IF(H3<>"",H3,"") -> KG | E4: 15.4 | F4: =IF(E4<>"","=","") -> = | G4: 2.2 | H4: $ CAN | L4: =E4 -> 15.4 | M4: =L4 -> 15.4 | O4: =G4 -> 2.2 | P4: =P3*O4 -> 220
B5: $ CAN | E5: 100 | F5: = | G5: 98 | H5: PAN 98 % | L5: 100 | M5: =M4*L5 -> 1540 | O5: 98 | P5: =P4*O5 -> 21560
B6: PAN 98 % | E6: 100 | F6: = | G6: 105 | H6: PRA 105 % | L6: 100 | M6: =M5*L6 -> 154000 | O6: 105 | P6: 2263800
B7: PRA 105 % | E7: 1 | F7: = | G7: 3.85 | H7: PRA EN CHF | L7: 1 | M7: 154000 | O7: 3.85 | P7: 8715630
B8: PRA EN CHF | E8: 90 | F8: = | G8: 100 | H8: PV 100 %EN CHF | L8: 90 | M8: =M7*L8 -> 13860000 | O8: 100 | P8: =P7*O8 -> 871563000
B9: PV 100 %EN CHF | L9: 0 | M9: =M8*L9 -> 0 | O9: 0 | P9: =P8*O9 -> 0
L10: 0 | M10: =M9*L10 -> 0 | O10: 0 | P10: 0
L11: 0 | M11: 0 | O11: 0 | P11: 0
L12: 0 | M12: 0 | O12: 0 | P12: 0
E13: =M13 -> 13860000 | G13: =P13 -> 871563000 | M13: =MAX(IF(M3:M12>0,M3:M12)) -> 13860000 | P13: =MAX(IF(P3:P12>0,P3:P12)) -> 871563000
B14: =B3 -> CHF | E14: =G13/E13 -> 62.88333333 | H14: =H3 -> KG
C16: Importation d'avoine canadien au pris de 2.20 $ can, PAB le boisseau de 34 lb. On optien une remise de 2 % et les fais d'achat s'élèvent à 5 % du PAN. A quel prix
C17: faut-il revendre le quintal en CHF pour que le B soit de 10 % du prix de vente.
C19: 32 m = 35 yards. Change 9.60

Sheet MODE D'EMPLOI
D1: DECOMPTE 1 | E1: DECOMPTE 2
D2: DONNEES
D3: MODE D'EMPLOI DES FACTURES DE SANTÉ
D4: Premièrement
D5: Allez dans la feuille Données
D6: Vérifier que les donnée sont correctes avant de commencer
B7: COLONNE CELLULE | D7: DANS LA FEUILLE COMPTE 1
B8: D2 | D8: Sélectionner l'assuré et le type de couverture (TRIANGLE SUR LA POINTE)
B9: G2 | D9: La date est affichée automatiquement
B10: B | D10: A partir de B4 il s'agit de la saisie des éléments du décompte proprement dit : Saisir la date du RDV Médical
B11: C | D11: Saisir la date de la facture du fournisseur de prestation
B12: D | D12: No de facture ou document similaire
B13: E | D13: Type de soins : Expl. ANALYSE / TRAITEMENT / MEDICAMENT / RADIO etc…
B14: F | D14: No attribué à la facture suivie de G pour Georges et de M pour Micheline
B15: G | D15: Nom du Fournisseur de soins, d'analyse, médicaments etc…
B16: H | D16: Taper le montant de la facture
B17: I | D17: Les FRAIS avancés par l'assuré
B18: J | D18: Colonne masquée pour calcul du 10 %
B19: K | D19: Affichage automatique du 10 % si celui-ci est calculé dans les colonnes suivantes
B20: L | D20: MONTANT DU REMBOURSEMENT
B21: M | D21: Texte à sélectionner par la petite flèche
B22: O | D22: Calcul du % de participation
B23: p | D23: Affichage du solde a payé par l'assurance
B24: O | D24: La colonne "O" est la colonne la plus importante de toutes car elle permet tout les calculs pour définir le total LIRE ATTENTIVEMENT LA SUITE.
B25: DECOMPTE 1 | C25: a | D25: Si le montant REMBOURSE correspond au montant de "Mes Avances" Alors taper ce montant. (S i NON lire attentivement la suite)
C26: b | D26: Si le montant inférieur au montant de "Mes Avances" OU partiellement Alors taper ce montant.
C27: c | D27: Si une partie du montant est attribué à la couverture partielle de la franchise il faut OUVRIR UNE NOUVELLE LIGNE avec le même numéro de document et taper la partie (le montant) attribuée à la franchise en négatif dans la colonne "N". (Exemple : -182.00). Si le montant REMBOURSE est supérieur à la FRANCHISE SAISIR LE MONTANT DE LA FRANCHISE PUIS, comme si dessus ouvrir une nouvelle ligne avec le même numéro de doc. et saisir le montant Comme part du remboursement.
C28: d | D28: Si le montant de la facture est totalement (100%) refusé il faut alors taper la somme non remboursée, puis taper 0 dans les colonnes P & Q.
C29: e | D29: EN CAS DE REMBOURSEMENT COMPLEMENTAIRES :
D30: LA RECAPITULATION ET LE RESUME : Affiche une syntèse des opérations
B31: Col. R | D31: Saisir le numéro du décompte de remboursement
B32: S | D32: Saisir le montant réellement remboursé par l'assureur (voir colonne S) ci-dessous.
B33: U | D33: MODIFIER UN TEXTE QUE L'ON VEUX FAIRE APPARAITRE DANS LA COLONNE "M"
D34: Il suffit de le taper par-dessus celui que l'on veux remplacer dans la colonne "M", la dernière ligne n'est pas modifiable pour conserver une possibilté vide.
B36: S | D36: COLONNE "S" ENREGISTRER LE MONTANT REELLEMENT PAYE PAR L'ASSUREUR Y COMPRIS LES MONTANT CONCERNANT UNE DIFFERENCE DE LA PARTICIPATION
B37: RETOUR AU DECOMPTE 1 | D37: Entrer les dates > les textes éventuels > passer jusqu'à la colonne " S " et entrer le montant positif en notre faveur sur la participation.
D39: DECOMPTE "2" (DEUX)
B40: RETOUR AU DECOMPTE 2 | D40: REMBOUSEMENT PAR L'ASSURANCE EXCLUSIVEMENT DECOMPTE " 1" NON REMBOURSEMENT EXCLUSIVEMENT DANS LE DECOMPTE "2"
D41: IL SUFFIT DE SAISIR QUEL QUE CHOSE POUR DECLANCHER LE REMBOUSEMENT DANS LA COLONNE "I". DANS LA LIGNE CONCERNEE ET LAISSER VIDE POUR NON REMBOURSé.

Sheet DONNEES
B1: MODE D''EMPLOI
B2: NOM ASSURANCES | D2: ADRESSES ASSURANCES | F2: ASSURE(E) - NUMERO DE POLICE
B3: ASSURA ASSURANCE MALADIE | D3: ASSURA | F3: Assura Basis - VOCAT Micheline - 962 020 - 16.06.1941
B4: GROUPE MUTUEL SA | D4: Assura-Basis SA | F4: Assura Basis - VOCAT Georges - 962 018 - 20.11.1939
D5: Case Postale 4 | F5: EsySana - VOCAT Micheline - 1013759 - 16.06.1941
D6: CH-1052 Le Mont-sur-Lausanne | F6: EsySana - VOCAT Georges - 1022834 - 20.11.1939
B9: DOMICILES + DIVERS | D9: MONTANTS A REPORTES SUR LE DECOMPTE
B10: Rue de la Fléchère 17 | D10: 300 | F10: FRANCHISES - MICHELINE & GEORGES
B11: CH-1260 NYON | D11: 0 | F11: FRANCHISES - DIFFERENTES
B12: Georges Vocat | D12: 700 | F12: PARTICIPATION MAXIMUM
B13: Micheline Vocat | D13: 0.1 | F13: POURCENTAGE DE PARTICIPATION
B14: CCP - 12-56914-9 | D14: 242.7 | F14: PRIME MENSUELLE
B15: Micheline & Georges VOCAT
B17: DATES | D17: Micheline & Georges VOCAT
B18: 2024 | D18: Micheline VOCAT
D19: Georges VOCAT

Sheet Suggestion1
A2: Colonne1 | B2: Nombre de Colonne1
A3: SOLDE DE LA FACTURE APRES DEDUCTION FRANCHISE - 10% | B3: 1
A4: REMBOURSEMENT NON PRIS EN CHARGE PAR L'ASSURANCE | B4: 1
A5: REMBOURSE SOUS DEDUCTION DU 10 % | B5: 1
A6: EN ATTENTE DE LA PARTICIPATION | B6: 1
A7: REMBOUSEMENT PARTIEL | B7: 1
A8: EN ATTENTE DE REGLEMENT | B8: 1
A9: DECOMPTE POUR FRANCHISE | B9: 1
A10: ERREUR | B10: 1
A11: REMBOURSEMENT DE L'ASSUREUR POUR TOP PAYE | B11: 1
A12: FACTURE PAYEE DIRECTEMENT PAR L'ASSURANCE | B12: 1
A13: REMBOURSEMENT SANS PARTICIPATION | B13: 1
A14: FACTURE PAYEE DIRECTEMENT PAR L'ASSURANCE AVEC SOLDE DE PARTICIPATION | B14: 1
A15: SOLDE DE LA FACTURE APRES DEDUCTION FRANCHISE | B15: 1
A16: MA PARTICIPATION 10 % SUR AVANCE DE L'ASSURANCE | B16: 1
A17: VOIR SUSPENDS | B17: 1
A18: NON REMBOURSE | B18: 1
A19: OPTIONS CONDITIONNELLES | B19: 1
A20: (vide)
A21: Total général | B21: 17
